Workbook

Sheet FACTURE PATH PNW - MAI 2022
J4: Nbre employes
A5: PAY NETWORK sarl Boulevard du 30 juin, n° 124, Immeuble RR HOUSE, Commune de la Gombe Kinshasa - RDC | G5: FACTURE | J5: 1 | K5: employé
A10: Client : PROGRAM FOR APPROPRIATE TECHNOLOGY HEALTH asbl DRC Avenue Mutombo Katshi, n° 10/13, 2ième étage, Commune de la Gombe, Kinshasa - RDC
G11: PATH-112052021- FACTURE
G14: Date : | H14: =TODAY() -> 2022-08-16
A16: SERVICE DE MISE A DISPOSITION DU PERSONNEL MAI 2022
A18: FEVRIER 2022
A19: Description | G19: Quantité | H19: PT (USD)
A21: * | B21: Salaire net | F21: =Feuil2!B9 -> Net salary | G21: =$J$5& " "&$K$5 -> 1 employé | H21: =Feuil2!D9 -> 2650
A22: * | B22: Cotisation CNSS Employé | F22: =Feuil2!B10 -> CNSS staff | G22: =$J$5& " "&$K$5 -> 1 employé | H22: =Feuil2!D10 -> 122.5157878
A23: * | B23: Cotisation CNSS Employeur | F23: =Feuil2!B11 -> CNSS company | G23: =$J$5& " "&$K$5 -> 1 employé | H23: =Feuil2!D11 -> 318.5410483
A24: * | B24: Cotisation IPR | F24: =Feuil2!B12 -> IPR Taxes | G24: 1 employé | H24: =Feuil2!D12 -> 594.9277694
A25: * | B25: Cotisation INPP | F25: =Feuil2!B13 -> INPP company | G25: 1 employé | H25: =Feuil2!D13 -> 49.00631513
A26: * | B26: Cotisation ONEM | F26: =Feuil2!B14 -> ONEM company | G26: 1 employé | H26: =Feuil2!D14 -> 4.900631513
A27: * | B27: Frais Médicaux | F27: =Feuil2!B15 -> Medical Care | G27: 1 employé | H27: =Feuil2!D15 -> 50
A28: * | B28: Frais bancaires | F28: =Feuil2!B16 -> Bank charges | G28: 1 employé | H28: =Feuil2!D16 -> 21.981371
A29: * | B29: Frais de gestion | F29: =Feuil2!B17 -> Pay Network fees | G29: 1 employé | H29: =Feuil2!D17 -> 571.7809385
A30: * | H30: =Feuil2!D18 -> 0
A31: * | H31: =Feuil2!D19 -> 
A34: PRIX TOTAL livré client | G34: USD | H34: =SUM(H21:H29) -> 4383.653862
A35: Nous disons : | C35: =ConvNumberLetter(H34,2,1,1,0) -> Quatre mille trois cent quatre-vingt-trois dollars et soixante-cinq cents | K35: =SUM(H34-Feuil2!O7) -> 
A38: Modalités de paiement :
A39: Payable par virement bancaire via le compte 00018-000010153326-1200-82 USD, PAY NETWORK SARL, swift
A40: BCDCCDKIXXX, Equity BCDC SA, dans les 5 jours ouvrables de la réception de la présente.
G45: Yvonne Kusuamina
G46: Associée-Gérante Statutaire
A56: www.paynetwork.cd

Sheet Table 1
I2: F A C T U R E
A3: 1, Avenue Wagenia C/Gombe
G5: GRANDS HOTELS DU CONGO SA 04 AV BATETELA, C/GOMBE KINSHASA
C6: Référence : BC/DG/072/07/22
C7: Date : | E7: =TODAY() -> 2022-08-16
A9: Intitulé : Facture Gestion des ressources humaines … ………Grand hôtel du Congo (Juillet 2022)
B10: Quantité | D10: Désignation | G10: Prix unitaire HT | J10: Prix total
D11: Cout salarial | F11: ='Feuil2 (2)'!B15 -> Coût salarial | J11: ='Feuil2 (2)'!C15 -> 30970.35
D12: Forfait soins médicaux | F12: ='Feuil2 (2)'!B16 -> Soins Medicaux 23$ par famille | J12: ='Feuil2 (2)'!C16 -> 2622
D13: Frais de service | F13: ='Feuil2 (2)'!B17 -> Frais de Services 9% | J13: ='Feuil2 (2)'!C17 -> 2350.59
D14: TVA 16% des frais de service | F14: ='Feuil2 (2)'!B18 -> TVA 16% Frais de Services | J14: ='Feuil2 (2)'!C18 -> 385.04
B16: PRIX TOTAL TTC
B17: Nous disons : | D17: =ConvNumberLetter(K17,2,1,1,0) -> Trente-six mille trois cent vingt-sept dollars et nonante-huit cents | J17: USD | K17: =SUM(J11:K14) -> 36327.98
A18: En votre aimable règlement, Cordialement, Conditions de paiement : paiement à la réception de la facture, par chèque ou virement bancaire.
A19: RAWBANK : B-CONNECTED SARL NUMERO : 05100-05101-01052064101-80 USD
A20: Tout incident de paiement est passible d'intérêt de retard. Le règlement de la facture se fera endéans les 5jours Indemnité forfaitaire pour frais de recouvrement due au créancier en cas de retard de paiement : 100$

Sheet Feuil2
D6: =Feuil4!AT6 -> Net salary | E6: =Feuil4!AU6 -> CNSS staff | F6: =Feuil4!AV6 -> CNSS company | G6: =Feuil4!AW6 -> IPR Taxes | H6: =Feuil4!AX6 -> INPP company | I6: =Feuil4!AY6 -> ONEM company | J6: =Feuil4!AZ6 -> Medical Care | K6: =Feuil4!BA6 -> Bank charges | L6: =Feuil4!BB6 -> Pay Network fees | M6: =Feuil4!BC6 -> TCC | N6: =Feuil4!BD6 -> 0 | O6: =Feuil4!BE6 -> 0
D7: =Feuil4!AT10 -> 2650 | E7: =Feuil4!AU10 -> 122.5157878 | F7: =Feuil4!AV10 -> 318.5410483 | G7: =Feuil4!AW10 -> 594.9277694 | H7: =Feuil4!AX10 -> 49.00631513 | I7: =Feuil4!AY10 -> 4.900631513 | J7: =Feuil4!AZ10 -> 50 | K7: =Feuil4!BA10 -> 21.981371 | L7: =Feuil4!BB10 -> 571.7809385 | M7: =Feuil4!BC10 -> 4383.653862 | N7: =Feuil4!#REF! ->  | O7: =Feuil4!#REF! -> 
B9: =D6 -> Net salary | D9: =D7 -> 2650
B10: =E6 -> CNSS staff | D10: =E7 -> 122.5157878
B11: =F6 -> CNSS company | D11: =F7 -> 318.5410483
B12: =G6 -> IPR Taxes | D12: =G7 -> 594.9277694
B13: =H6 -> INPP company | D13: =H7 -> 49.00631513
B14: =I6 -> ONEM company | D14: =I7 -> 4.900631513
B15: =J6 -> Medical Care | D15: =J7 -> 50
B16: =K6 -> Bank charges | D16: =K7 -> 21.981371
B17: =L6 -> Pay Network fees | D17: =L7 -> 571.7809385
B18: =M6 -> TCC
B19: =N6 -> 0 | D19: =N7 -> 
B20: =O6 -> 0 | D20: =O7 -> 

Sheet Feuil2 (2)
A1: Base imposable | B1: Plafond INSS | C1: Salaire journalier | D1: Ind. Logement | E1: Ind. Transp | F1: CNSS QPO | G1: IPR | H1: Masse salariale | I1: Net à payer | J1: CNSS QPP | K1: INPP | L1: ONEM | M1: Total Charges patronales | N1: Coût salarial | O1: Soins Medicaux 23$ par famille | P1: Autre prime | Q1: Frais de Services 9% | R1: TVA 16% Frais de Services | S1: Total Employeur mensuel
T2: =Feuil5!AA3 -> 0 | U2: =Feuil5!AB3 -> 0 | V2: =Feuil5!AC3 -> 0 | W2: =Feuil5!AD3 -> 0 | X2: =Feuil5!AE3 -> 0 | Y2: =Feuil5!AF3 -> 0 | Z2: =Feuil5!AG3 -> 0 | AA2: =Feuil5!AH3 -> 0 | AB2: =Feuil5!AI3 -> 0 | AC2: =Feuil5!AJ3 -> 0 | AD2: =Feuil5!AK3 -> 0 | AE2: =Feuil5!AL3 -> 0 | AF2: =Feuil5!AM3 -> 0 | AG2: =Feuil5!AN3 -> 0 | AH2: =Feuil5!AO3 -> 0 | AI2: =Feuil5!AP3 -> 0 | AJ2: =Feuil5!AQ3 -> 0 | AK2: =Feuil5!AR3 -> 0 | AL2: =Feuil5!AS3 -> 0
A4: =Feuil5!H3 -> Base imposable | B4: =Feuil5!I3 -> Plafond INSS | C4: =Feuil5!J3 -> Salaire journalier | D4: =Feuil5!K3 -> Ind. Logement | E4: =Feuil5!L3 -> Ind. Transp | F4: =Feuil5!M3 -> CNSS QPO | G4: =Feuil5!N3 -> IPR | H4: =Feuil5!O3 -> Masse salariale | I4: =Feuil5!P3 -> Net à payer | J4: =Feuil5!Q3 -> CNSS QPP | K4: =Feuil5!R3 -> INPP | L4: =Feuil5!S3 -> ONEM | M4: =Feuil5!T3 -> Total Charges patronales | N4: =Feuil5!U3 -> Coût salarial | O4: =Feuil5!V3 -> Soins Medicaux 23$ par famille | P4: =Feuil5!W3 -> Autre prime | Q4: =Feuil5!X3 -> Frais de Services 9% | R4: =Feuil5!Y3 -> TVA 16% Frais de Services | S4: =Feuil5!Z3 -> Total Employeur mensuel
A5: =Feuil5!H36 -> 0 | B5: =Feuil5!I36 -> 0 | C5: =Feuil5!J36 -> 0 | D5: =Feuil5!K36 -> 0 | E5: =Feuil5!L36 -> 0 | F5: =Feuil5!M36 -> 0 | G5: =Feuil5!N36 -> 0 | H5: =Feuil5!O36 -> 0 | I5: =Feuil5!P36 -> 7828 | J5: =Feuil5!Q36 -> 0 | K5: =Feuil5!R36 -> 0 | L5: =Feuil5!S36 -> 0 | M5: =Feuil5!T36 -> 0 | N5: =Feuil5!U36 -> 9335.32 | O5: =Feuil5!V36 -> 713 | P5: =Feuil5!W36 -> 0 | Q5: =Feuil5!X36 -> 705.48 | R5: =Feuil5!Y36 -> 114.32 | S5: =Feuil5!Z36 -> 10868.12
A6: =Feuil6!H3 -> Base imposable | B6: =Feuil6!I3 -> Plafond INSS | C6: =Feuil6!J3 -> Salaire journalier | D6: =Feuil6!K3 -> Ind. Logement | E6: =Feuil6!L3 -> Ind. Transp | F6: =Feuil6!M3 -> CNSS QPO | G6: =Feuil6!N3 -> IPR | H6: =Feuil6!O3 -> Masse salariale | I6: =Feuil6!P3 -> Net à payer | J6: =Feuil6!Q3 -> CNSS QPP | K6: =Feuil6!R3 -> INPP | L6: =Feuil6!S3 -> ONEM | M6: =Feuil6!T3 -> Total Charges patronales | N6: =Feuil6!U3 -> Coût salarial | O6: =Feuil6!V3 -> Soins Medicaux 23$ par famille | P6: =Feuil6!W3 -> Autre prime | Q6: =Feuil6!X3 -> Frais de Services 9% | R6: =Feuil6!Y3 -> TVA 16% Frais de Services | S6: =Feuil6!Z3 -> Total Employeur mensuel
A7: =Feuil6!H36 -> 0 | B7: =Feuil6!I36 -> 0 | C7: =Feuil6!J36 -> 0 | D7: =Feuil6!K36 -> 0 | E7: =Feuil6!L36 -> 0 | F7: =Feuil6!M36 -> 0 | G7: =Feuil6!N36 -> 0 | H7: =Feuil6!O36 -> 0 | I7: =Feuil6!P36 -> 6422 | J7: =Feuil6!Q36 -> 0 | K7: =Feuil6!R36 -> 0 | L7: =Feuil6!S36 -> 0 | M7: =Feuil6!T36 -> 0 | N7: =Feuil6!U36 -> 7555.23 | O7: =Feuil6!V36 -> 713 | P7: =Feuil6!W36 -> 0 | Q7: =Feuil6!X36 -> 583.08 | R7: =Feuil6!Y36 -> 95.5 | S7: =Feuil6!Z36 -> 8946.81
A8: =Feuil7!H3 -> Base imposable | B8: =Feuil7!I3 -> Plafond INSS | C8: =Feuil7!J3 -> Salaire journalier | D8: =Feuil7!K3 -> Ind. Logement | E8: =Feuil7!L3 -> Ind. Transp | F8: =Feuil7!M3 -> CNSS QPO | G8: =Feuil7!N3 -> IPR | H8: =Feuil7!O3 -> Masse salariale | I8: =Feuil7!P3 -> Net à payer | J8: =Feuil7!Q3 -> CNSS QPP | K8: =Feuil7!R3 -> INPP | L8: =Feuil7!S3 -> ONEM | M8: =Feuil7!T3 -> Total Charges patronales | N8: =Feuil7!U3 -> Coût salarial | O8: =Feuil7!V3 -> Soins Medicaux 23$ par famille | P8: =Feuil7!W3 -> Autre prime | Q8: =Feuil7!X3 -> Frais de Services 9% | R8: =Feuil7!Y3 -> TVA 16% Frais de Services | S8: =Feuil7!Z3 -> Total Employeur mensuel
A9: =Feuil7!H36 -> 0 | B9: =Feuil7!I36 -> 0 | C9: =Feuil7!J36 -> 0 | D9: =Feuil7!K36 -> 0 | E9: =Feuil7!L36 -> 0 | F9: =Feuil7!M36 -> 0 | G9: =Feuil7!N36 -> 0 | H9: =Feuil7!O36 -> 0 | I9: =Feuil7!P36 -> 6510 | J9: =Feuil7!Q36 -> 0 | K9: =Feuil7!R36 -> 0 | L9: =Feuil7!S36 -> 0 | M9: =Feuil7!T36 -> 0 | N9: =Feuil7!U36 -> 7721.31 | O9: =Feuil7!V36 -> 713 | P9: =Feuil7!W36 -> 0 | Q9: =Feuil7!X36 -> 587.31 | R9: =Feuil7!Y36 -> 99.13 | S9: =Feuil7!Z36 -> 9120.75
A10: =Feuil8!G3 -> Base imposable | B10: =Feuil8!H3 -> Plafond INSS | C10: =Feuil8!I3 -> Salaire journalier | D10: =Feuil8!J3 -> Ind. Logement | E10: =Feuil8!K3 -> Ind. Transp | F10: =Feuil8!L3 -> CNSS QPO | G10: =Feuil8!M3 -> IPR | H10: =Feuil8!N3 -> Masse salariale | I10: =Feuil8!O3 -> Net à payer | J10: =Feuil8!P3 -> CNSS QPP | K10: =Feuil8!Q3 -> INPP | L10: =Feuil8!R3 -> ONEM | M10: =Feuil8!S3 -> Total Charges patronales | N10: =Feuil8!T3 -> Coût salarial | O10: =Feuil8!U3 -> Soins Medicaux 23$ par famille | P10: =Feuil8!V3 -> Autre prime | Q10: =Feuil8!W3 -> Frais de Services 9% | R10: =Feuil8!X3 -> TVA 16% Frais de Services | S10: =Feuil8!Y3 -> Total Employeur mensuel
A11: =Feuil8!G26 -> 0 | B11: =Feuil8!H26 -> 0 | C11: =Feuil8!I26 -> 0 | D11: =Feuil8!J26 -> 0 | E11: =Feuil8!K26 -> 0 | F11: =Feuil8!L26 -> 0 | G11: =Feuil8!M26 -> 0 | H11: =Feuil8!N26 -> 0 | I11: =Feuil8!O26 -> 5275 | J11: =Feuil8!P26 -> 0 | K11: =Feuil8!Q26 -> 0 | L11: =Feuil8!R26 -> 0 | M11: =Feuil8!S26 -> 0 | N11: =Feuil8!T26 -> 6358.49 | O11: =Feuil8!U26 -> 483 | P11: =Feuil8!V26 -> 0 | Q11: =Feuil8!W26 -> 474.72 | R11: =Feuil8!X26 -> 76.09 | S11: =Feuil8!Y26 -> 7392.3
A13: TOTAL | I13: =SUM(I5+I7+I9+I11) -> 26035 | N13: =SUM(N5+N7+N9+N11) -> 30970.35 | O13: =SUM(O5+O7+O9+O11) -> 2622 | Q13: =SUM(Q5+Q7+Q9+Q11) -> 2350.59 | R13: =SUM(R5+R7+R9+R11) -> 385.04 | S13: =SUM(S5+S7+S9+S11) -> 36327.98
B15: =N1 -> Coût salarial | C15: =N13 -> 30970.35 | D15: =N4 -> Coût salarial
B16: =O1 -> Soins Medicaux 23$ par famille | C16: =O13 -> 2622 | D16: =O4 -> Soins Medicaux 23$ par famille
B17: =Q1 -> Frais de Services 9% | C17: =Q13 -> 2350.59 | D17: =Q4 -> Frais de Services 9%
B18: =R1 -> TVA 16% Frais de Services | C18: =R13 -> 385.04 | D18: =R4 -> TVA 16% Frais de Services
G19: difference ici doit être égal à zero
C20: =SUM(C15:C19) -> 36327.98 | G20: =SUM(C20-S13) -> 0
D24: =Feuil4!AT6 -> Net salary | E24: =Feuil4!AU6 -> CNSS staff | F24: =Feuil4!AV6 -> CNSS company | G24: =Feuil4!AW6 -> IPR Taxes | H24: =Feuil4!AX6 -> INPP company | I24: =Feuil4!AY6 -> ONEM company | J24: =Feuil4!AZ6 -> Medical Care | K24: =Feuil4!BA6 -> Bank charges | L24: =Feuil4!BB6 -> Pay Network fees | M24: =Feuil4!BC6 -> TCC | N24: =Feuil4!BD6 -> 0 | O24: =Feuil4!BE6 -> 0
D25: =Feuil4!AT10 -> 2650 | E25: =Feuil4!AU10 -> 122.5157878 | F25: =Feuil4!AV10 -> 318.5410483 | G25: =Feuil4!AW10 -> 594.9277694 | H25: =Feuil4!AX10 -> 49.00631513 | I25: =Feuil4!AY10 -> 4.900631513 | J25: =Feuil4!AZ10 -> 50 | K25: =Feuil4!BA10 -> 21.981371 | L25: =Feuil4!BB10 -> 571.7809385 | M25: =Feuil4!BC10 -> 4383.653862 | N25: =Feuil4!#REF! ->  | O25: =Feuil4!#REF! -> 
B27: =D24 -> Net salary | D27: =D25 -> 2650
B28: =E24 -> CNSS staff | D28: =E25 -> 122.5157878
B29: =F24 -> CNSS company | D29: =F25 -> 318.5410483
B30: =G24 -> IPR Taxes | D30: =G25 -> 594.9277694
B31: =H24 -> INPP company | D31: =H25 -> 49.00631513
B32: =I24 -> ONEM company | D32: =I25 -> 4.900631513
B33: =J24 -> Medical Care | D33: =J25 -> 50
B34: =K24 -> Bank charges | D34: =K25 -> 21.981371
B35: =L24 -> Pay Network fees | D35: =L25 -> 571.7809385
B36: =M24 -> TCC
B37: =N24 -> 0 | D37: =N25 -> 
B38: =O24 -> 0 | D38: =O25 -> 
P45: =SUM(P13:P43) -> 0 | U45: =SUM(U13:U43) -> 0 | V45: =SUM(V13:V43) -> 0 | X45: =SUM(X13:X43) -> 0 | Y45: =SUM(Y13:Y43) -> 0 | Z45: =U45+V45+X45+Y45 -> 0
P46: =SUM(P44-P45) -> 0 | U46: =SUM(U44-U45) -> 0 | V46: =SUM(V44-V45) -> 0 | X46: =SUM(X44-X45) -> 0 | Y46: =SUM(Y44-Y45) -> 0 | Z46: =SUM(Z44-Z45) -> 0

Sheet Feuil4 (hidden)
D3: PAYROLL | E3: MAY 2022 | X3: PAYROLL | Y3: =+E3 -> MAY 2022 | AW3: PAYROLL | AX3: =+Y3 -> MAY 2022
U5: STAFF COST | AS5: COMPANY COST
B6: Name | C6: Middle Name | D6: First Name | E6: Position | F6: Account number | G6: Bank | H6: Job Grading | I6: Entry on Duty | J6: End of contract | K6: Seniority up to | M6: Calendar days | N6: Contract | O6: Assignment | P6: City | Q6: Hospital | R6: Gross salary | S6: Basic salary | T6: Spouse | U6: Children | V6: Working days | W6: Leave days | X6: Currency | Y6: Exchange rate | Z6: Basic salary | AA6: Leave | AB6: 13th month | AC6: Exchange rate gap | AD6: Gross taxable salary | AE6: CNSS | AF6: Net before taxes | AH6: IPR Taxes | AI6: Net after taxes | AJ6: Housing | AK6: Transport | AL6: Autres remboursements | AM6: Salary advance | AN6: Net salary | AS6: Name | AT6: Net salary | AU6: CNSS staff | AV6: CNSS company | AW6: IPR Taxes | AX6: INPP company | AY6: ONEM company | AZ6: Medical Care | BA6: Bank charges | BB6: Pay Network fees | BC6: TCC
A7: 1 | B7: KIVUDI | C7: KAPITA | D7: Rossyl | F7: 15101-10044173501-14 | G7: Rawbank sa | H7: Managers | I7: 2022-01-01 | J7: 2022-02-28 | K7: 2022-05-31 | L7: =(K7-I7)/30 -> 5 | M7: 22 | N7: CDD | O7: PATH | P7: Kinshasa | Q7: EPA | R7: =Y7+AI7+AJ7 -> 4470.79464 | S7: 2445.974802 | T7: 0 | U7: 1 | V7: 22 | W7: 0 | X7: USD | Y7: 2004.13 | Z7: =S7/M7*V7 -> 2445.974802 | AA7: =S7/M7*W7 -> 0 | AB7: 0 | AC7: 4.340954249 | AD7: =SUM(Z7:AC7) -> 2450.315756 | AE7: =AD7*5/100 -> 122.5157878 | AF7: =AD7-AE7 -> 2327.799969 | AG7: =AG8/Y7 -> 594.9277694 | AH7: =AH8/Y7 -> 594.9277694 | AI7: =AF7-AH7 -> 1732.872199 | AJ7: =(Z7+AA7)*30/100 -> 733.7924407 | AK7: =IF(P7="Matadi",(1200*V7)/Y7,(1000/12)/M7*V7) -> 83.33333333 | AL7: 100 | AM7: 0 | AN7: =AI7+AJ7+AK7+AL7-AM7 -> 2649.997973 | AO7: 2550 | AP7: =AO7-AN7 -> -99.99797326 | AQ7: =+AP7+AC7 -> -95.65701901 | AR7: =+A7 -> 1 | AS7: =+CONCATENATE(B7," ",C7," ",D7) -> KIVUDI KAPITA Rossyl | AT7: =ROUND(AN7,2) -> 2650 | AU7: =AE7 -> 122.5157878 | AV7: =AD7*13/100 -> 318.5410483 | AW7: =AH7 -> 594.9277694 | AX7: =AD7*2/100 -> 49.00631513 | AY7: =AD7*0.2/100 -> 4.900631513 | AZ7: =IF(N7="CDD",50,0) -> 50 | BA7: =((AT7+AU7+AV7+AW7+AX7+AY7+AZ7)*0.5/100)+(((AT7+AU7+AV7+AW7+AX7+AY7+AZ7)*0.5/100)*16/100) -> 21.981371 | BB7: =((AT7+AU7+AV7+AW7+AX7+AY7+AZ7+BA7)*15/100) -> 571.7809385 | BC7: =SUM(AT7:BB7) -> 4383.653862
X8: CDF | Y8: 2004.13 | Z8: =Z7*Y8 -> 4902051.48 | AA8: =AA7*Y8 -> 0 | AB8: =AB7*Y8 -> 0 | AC8: =+AC7*Y7 -> 8699.836639 | AD8: =AD7*Y8 -> 4910751.317 | AE8: =AE7*Y8 -> 245537.5659 | AF8: =AF7*Y8 -> 4665213.751 | AG8: =IF(AND(AF8>0,AF8<162001),4860,IF(AND(AF8>162000,AF8<1800001),(4860+(((AF8-162000)*15/100)-(4860+(AF8-162000)*15/100)*((T7+U7)*2/100))),IF(AND(AF8>1800000,AF8<3600001),(250560+(((AF8-1800000)*30/100)-(250560+(AF8-1800000)*30/100)*((T7+U7)*2/100))),IF(AND(AF8>3600000,AF8<100000000000),(790560+(((AF8-3600000)*40/100)-(790560+(AF8-3600000)*40/100)*((T7+U7)*2/100))),(AF8*30/100))))) -> 1192312.59 | AH8: =IF(AND(AG8<2000),2000,IF(AND(AG8>(AF8*30/100)),AF8*30/100,AG8)) -> 1192312.59 | AI8: =AI7*Y8 -> 3472901.161 | AJ8: =AJ7*Y8 -> 1470615.444 | AK8: =AK7*Y8 -> 167010.8333 | AL8: =AL7*Y8 -> 200413 | AM8: =AM7*Y8 -> 0 | AN8: =AN7*Y8 -> 5310940.438 | AT8: =AT7*Y8 -> 5310944.5 | AU8: =AU7*Y8 -> 245537.5659 | AV8: =AV7*Y8 -> 638397.6712 | AW8: =AW7*Y8 -> 1192312.59 | AX8: =AX7*Y8 -> 98215.02634 | AY8: =AY7*Y8 -> 9821.502634 | AZ8: =AZ7*Y8 -> 100206.5 | BA8: =BA7*Y8 -> 44053.52507 | BB8: =BB7*Y8 -> 1145923.332 | BC8: =BC7*Y8 -> 8785412.214
X10: USD | Z10: =+Z7 -> 2445.974802 | AA10: 0 | AB10: 0 | AC10: 4.340954249 | AD10: 2450.315756 | AE10: 122.5157878 | AF10: 2327.799969 | AG10: 594.9277694 | AH10: 594.9277694 | AI10: 1732.872199 | AJ10: 733.7924407 | AK10: 83.33333333 | AL10: 100 | AM10: 0 | AN10: 2649.997973 | AO10: 2550 | AP10: -99.99797326 | AT10: =+AT7 -> 2650 | AU10: 122.5157878 | AV10: 318.5410483 | AW10: 594.9277694 | AX10: 49.00631513 | AY10: 4.900631513 | AZ10: 50 | BA10: 21.981371 | BB10: 571.7809385 | BC10: 4383.653862
X11: CDF | Z11: 4902051.48 | AA11: 0 | AB11: 0 | AC11: 8699.836639 | AD11: 4910751.317 | AE11: 245537.5659 | AF11: 4665213.751 | AG11: 1192312.59 | AH11: 1192312.59 | AI11: 3472901.161 | AJ11: 1470615.444 | AK11: 167010.8333 | AL11: 200413 | AM11: 0 | AN11: 5310940.438 | AT11: 5310944.5 | AU11: 245537.5659 | AV11: 638397.6712 | AW11: 1192312.59 | AX11: 98215.02634 | AY11: 9821.502634 | AZ11: 100206.5 | BA11: 44053.52507 | BB11: 1145923.332 | BC11: 8785412.214

Sheet Liquid Février (DSA)
J4: Nbre employes
A5: PAY NETWORK sarl Boulevard du 30 juin, 124, Immeuble RR HOUSE Gombe Kinshasa RDC | G5: FACTURE | J5: 13 | K5: employés
J7: Date | K7: =TODAY() -> 2022-08-16
A11: Client : LIQUID TELECOM 9ème étage, immeuble 1113, Boulevard du 30 juin, Commune de la Gombe, Kinshasa-RDC | K11: LT-09022022-FACTURE
G12: LT-10032022-FACTURE | K12: SERVICE DE MISE A DISPOSITION DES EMPLOYES (DSA) – JANVIER 2022
G15: Date : 04-03-2022
A17: SERVICE DE MISE A DISPOSITION DES EMPLOYES (DSA) – FEVRIER 2022
A20: Description | G20: Quantité | H20: PT (USD)
A22: * Salaires nets | G22: =$J$5& " "&$K$5 -> 13 employés | H22: =+'[1]Février (DSA)'!$AV$34+'[1]Février (DSA)'!$BE$34 -> 3670.589412
A23: * Cotisations CNSS | G23: 13 employés | H23: =+'[1]Février (DSA)'!$AW$34+'[1]Février (DSA)'!$AX$34 -> 470.5470578
A24: * Contributions IPR | G24: 13 employés | H24: =+'[1]Février (DSA)'!$AY$34 -> 235.1982481
A25: * Cotisations INPP | G25: 13 employés | H25: =+'[1]Février (DSA)'!$BA$34 -> 52.28300642
A26: * Cotisations ONEM | G26: 13 employés | H26: =+'[1]Février (DSA)'!$BB$34 -> 5.228300642
A27: * Contribution Medicale | G27: 13 employés | H27: =+SUM([2]Feuil4!$F$13:$F$25) -> 650
A28: * Communication | G28: 13 employés | H28: =+[2]Feuil4!$G$26 -> 260
A29: * Frais bancaires | G29: 0.0058 | H29: =+'[1]Février (DSA)'!$BD$34 -> 25.71630694
A30: * Frais de gestion | G30: =$J$5& " "&$K$5 -> 13 employés | H30: =+'[1]Février (DSA)'!$BG$34 -> 220.2353647
A31: * TVA | G31: 0.16 | H31: =+H30*0.16 -> 35.23765835
A32: PRIX TOTAL livré client | H32: =SUM(H22:H31) -> 5625.035355
A33: Nous disons : | B33: =ConvNumberLetter(H32,2,1,1,0) -> Cinq mille six cent vingt-cinq dollars et quatre cents | G33: USD
A35: Modalités de paiement :
A36: Payable par virement bancaire via le compte 00018-000010153326-1200-82 USD, PAY NETWORK SARL, swift
A37: BCDCCDKIXXX, Equity BCDC SA, dans les 5 jours ouvrables de la réception de la présente.
G45: Yvonne Kusuamina
G46: Associée-Gérante Statutaire
A51: www.paynetwork.cd

Sheet Pour Facture (hidden)
C8: Description | D8: Quantité | E8: PT (USD)
C10: § Salaires nets | D10: 10 employés | E10: 22009.29
C12: § Cotisations INSS | D12: 10 employés | E12: 3542.23
C14: § Contributions IPR | D14: 10 employés | E14: 1869.51
C16: § Contributions INPP | D16: 10 employés | E16: 393.58
C18: § Contributions ONEM | D18: 10 employés | E18: 39.36
C20: § Frais bancaires | D20: 0.58% | E20: 33.9
C22: § Frais de gestion | D22: 10 employés | E22: 1
C24: PRIX TOTAL livré client
C25: Nous disons : US Dollars | D25: =ConvNumberLetter(G25,2,1,1,0) -> Vingt-sept mille huit cent quatre-vingt-huit dollars et quatre-vingt-sept cents | F25: USD | G25: =SUM(E10:G22) -> 27888.87
D30: =ConvNumberLetter(G25,0,1,1) -> Vingt-sept mille huit cent quatre-vingt-huit virgule quatre-vingt-sept

Sheet Pour Facture (2) (hidden)
C8: Description | D8: Quantité | E8: PT (USD)
C10: § Salaires nets | D10: 10 employés | E10: 0
C12: § Cotisations INSS | D12: 10 employés | E12: 0
C14: § Contributions IPR | D14: 10 employés | E14: 0
C16: § Contributions INPP | D16: 10 employés | E16: 1
C18: § Contributions ONEM | D18: 10 employés | E18: 1
C20: § Frais bancaires | D20: 0.58% | E20: 91
C22: § Frais de gestion | D22: 10 employés | E22: 1.23
C24: PRIX TOTAL livré client
C25: Nous disons : US Dollars | D25: =ConvNumberLetter(G25,2,1,2,0) -> NONANTE-QUATRE DOLLARS ET VINGT-TROIS CENTS | F25: USD | G25: =SUM(E10:G22) -> 94.23
D30: =ConvNumberLetter(G25,0,1,1) -> Nonante-quatre virgule vingt-trois

Sheet Feuil1 (hidden)
O2: BANQUE | P2: NUMERO DE COMPTE | Q2: INTITULE DU COMPTE
O4: BCDC-USD | P4: 00011-02101-00001158769-77 USD | Q4: PAY NETWORK SARL
O5: BCDC-CDF | P5: 00011-02101-00001097518-15 CDF
O6: BOA USD | P6: 00029-01017-01158600007-21 | Q6: PAY NETWORK SARL
G7: RECEIPT VOUCHER | O7: ECOBANK USD | P7: 00026-00001-03621171701-90 | Q7: PAY NETWORK SARL
O8: FBNBANK-USD | P8: 00014-11000-20300173094-92
G9: RV N° : | J9: 0004/10/21/MM | O9: FBNBANK-CDF | P9: 00014-11000-20300172946-41 | Q9: PAY NETWORK SARL
G10: DATE : | J10: 2021-10-08 | O10: EQUITYBANK USD | P10: 00018-00001-01533261200-82 | Q10: PAY NETWORK SARL
B11: 1. Description/Expense | O11: PROCREDIT USD2 | P11: 00018-00008-01533261202-68 | Q11: PAY NETWORK SARL
B12: Beneficiary: PAY NETWORK | O12: PROCREDIT CDF | P12: 00018-00001-01533261101-88
B13: Details: APPROVISIONNEMENT DE COMPTES | O13: PROCREDIT EUR | P13: 00018-00008-01533261301-62
B14: Beneficiary bank: ECOBANK | G14: Accountant number: 00026-00001-03621171701-90 | O14: RAWBANK-USD | P14: 05100 25101 01018044101 96
O15: RAWBANK-CDF | P15: 05100 25101 01018044102 93 | Q15: PAY NETWORK V/C USD
B16: Documents joints: LISTE APPROVISIONNEMENT DES COMPTES | O16: RAWBANK-USD/ICFI | P16: 05100 25101 01018044103 90
O17: TMB-USD | P17: 00017-11000-50017300101-12 | Q17: PAY NETWORK SARL
B18: Debit bank: EQUITY | G18: Debtor account number: 00018-00001-01533261200-82 | O18: TMB-CDF | P18: 00017-11000-50017300000-24
O19: UBA USD | P19: 00030068044032000280624 / 040320002806 | Q19: PAY NETWORK SARL
B20: Invoice | D20: Contract/extract | F20: B/C | H20: B/L | J20: D/A | L20: Proforma
B22: 2. Amount
B23: Currency: | D23: USD | F23: EUROS | H23: CDF
B24: Total bill: | D24: 20000 | F24: 0 | H24: 0
B25: To deduce: | D25: 0 | F25: 0
B26: To execute: | D26: =D24-D25 -> 20000 | F26: =F24-F25 -> 0 | H26: =H24-H25 -> 0
B28: In letters: | C28: =ConvNumberLetter(D24,2,1,2,0) -> VINGT MILLE DOLLARS
B31: 3. Monitoring budget/Imputation
B33: Prevision | D33: Availability | F33: To pay | H33: Difference/Prevision | J33: Budget/Accountant code
H36: 6. Emission et contrôle titres de paiement
B38: 4. Prepared by Finance Assistant | H38: COMPTABILITE | K38: IN
B40: Nom: MABULU MARC | K40: OUT
B41: Date/Signature
B42: =J10 -> 2021-10-08 | H42: TRESORERIE | K42: IN
B43: 5.1 Approval/Authorization by Finance Officer
K44: OUT
B45: Nom: NZANZU JEAN-CLAUDE
B46: Date/Signature | K46: Cheque/OP N°
B49: 5.2 Approval/Authorization
B51: Approved by: | H51: Authorized by:
B52: Finance Manager | H52: Chief Executive Officer
B54: Nom: NZANZU MUHINDO
B55: Date/Signature | H55: Date/Signature

Sheet explications (3) (hidden)
A1: 999.99 | B1: =ConvNumberLetter(A1,2,0,0,1) -> neuf cent quatre-vingt-dix-neuf dollars et quatre-vingt-dix-neuf cents
A2: 70.25 | B2: soixante-dix dollars et vingt-cinq cents | J2: Code tiré de cette discussion
A3: 0.01 | B3: zéro dollar et un cent
A4: 2000000.02 | B4: deux millions de dollars et deux cents
B5: zéro dollar zéro cent | H5: =
A6: 1000 | B6: =ConvNumberLetter(A6,0,0,1) -> Mille
B7: zéro dollar zéro cent
B8: zéro dollar zéro cent
B9: zéro dollar zéro cent
B10: zéro dollar zéro cent
B11: zéro dollar zéro cent
B12: zéro dollar zéro cent
B13: zéro dollar zéro cent
A14: 91 | B14: quatre-vingt-onze dollars zéro cent
A15: 91.32 | B15: =ConvNumberLetter(A15,2,0,0,0) -> quatre-vingt-onze dollars et trente-deux cents
B22: =ConvNumberLetter(A22,0,1,1) -> Zéro
B23: Zéro
B24: Zéro
B25: Zéro
A26: 91.23 | B26: =ConvNumberLetter(A26,0,1,1) -> Nonante et un virgule vingt-trois
B27: Zéro
B28: Zéro
A29: 6000 | B29: =ConvNumberLetter(A29,0,1,1) -> Six mille
A30: 91 | B30: Nonante et un

Sheet Feuil1 (2) (hidden)
O2: BANQUE | P2: NUMERO DE COMPTE | Q2: INTITULE DU COMPTE
O4: BCDC-USD | P4: 00011-02101-00001158769-77 USD | Q4: PAY NETWORK SARL
O5: BCDC-CDF | P5: 00011-02101-00001097518-15 CDF
O6: BOA USD | P6: 00029-01017-01158600007-21 | Q6: PAY NETWORK SARL
G7: RECEIPT VOUCHER | O7: ECOBANK USD | P7: 00026-00001-03621171701-90 | Q7: PAY NETWORK SARL
O8: FBNBANK-USD | P8: 00014-11000-20300173094-92
G9: RV N° : | J9: 0004/10/21/MM | O9: FBNBANK-CDF | P9: 00014-11000-20300172946-41 | Q9: PAY NETWORK SARL
G10: DATE : | J10: 2021-10-08 | O10: EQUITYBANK USD | P10: 00018-00001-01533261200-82 | Q10: PAY NETWORK SARL
B11: 1. Description/Expense | O11: PROCREDIT USD2 | P11: 00018-00008-01533261202-68 | Q11: PAY NETWORK SARL
B12: Beneficiary: PAY NETWORK | O12: PROCREDIT CDF | P12: 00018-00001-01533261101-88
B13: Details: APPROVISIONNEMENT DE COMPTES | O13: PROCREDIT EUR | P13: 00018-00008-01533261301-62
B14: Beneficiary bank: ECOBANK | G14: Accountant number: 00026-00001-03621171701-90 | O14: RAWBANK-USD | P14: 05100 25101 01018044101 96
O15: RAWBANK-CDF | P15: 05100 25101 01018044102 93 | Q15: PAY NETWORK V/C USD
B16: Documents joints: LISTE APPROVISIONNEMENT DES COMPTES | O16: RAWBANK-USD/ICFI | P16: 05100 25101 01018044103 90
O17: TMB-USD | P17: 00017-11000-50017300101-12 | Q17: PAY NETWORK SARL
B18: Debit bank: EQUITY | G18: Debtor account number: 00018-00001-01533261200-82 | O18: TMB-CDF | P18: 00017-11000-50017300000-24
O19: UBA USD | P19: 00030068044032000280624 / 040320002806 | Q19: PAY NETWORK SARL
B20: Invoice | D20: Contract/extract | F20: B/C | H20: B/L | J20: D/A | L20: Proforma
B22: 2. Amount
B23: Currency: | D23: USD | F23: EUROS | H23: CDF
B24: Total bill: | D24: 20000 | F24: 0 | H24: 0
B25: To deduce: | D25: 0 | F25: 0
B26: To execute: | D26: =D24-D25 -> 20000 | F26: =F24-F25 -> 0 | H26: =H24-H25 -> 0
B28: In letters: | C28: =ConvNumberLetter(D24,2,1,2,0) -> VINGT MILLE DOLLARS
B31: 3. Monitoring budget/Imputation
B33: Prevision | D33: Availability | F33: To pay | H33: Difference/Prevision | J33: Budget/Accountant code
H36: 6. Emission et contrôle titres de paiement
B38: 4. Prepared by Finance Assistant | H38: COMPTABILITE | K38: IN
B40: Nom: MABULU MARC | K40: OUT
B41: Date/Signature
B42: =J10 -> 2021-10-08 | H42: TRESORERIE | K42: IN
B43: 5.1 Approval/Authorization by Finance Officer
K44: OUT
B45: Nom: NZANZU JEAN-CLAUDE
B46: Date/Signature | K46: Cheque/OP N°
B49: 5.2 Approval/Authorization
B51: Approved by: | H51: Authorized by:
B52: Finance Manager | H52: Chief Executive Officer
B54: Nom: NZANZU MUHINDO
B55: Date/Signature | H55: Date/Signature

Sheet Feuil5
J2: ETAT DE PAIE GRANDS HOTELS DU CONGO JUILLET 2022
A3: N° | B3: Noms | C3: Fonction | D3: Matricule | E3: Localisation | F3: Pointage du mois | H3: Base imposable | I3: Plafond INSS | J3: Salaire journalier | K3: Ind. Logement | L3: Ind. Transp | M3: CNSS QPO | N3: IPR | O3: Masse salariale | P3: Net à payer | Q3: CNSS QPP | R3: INPP | S3: ONEM | T3: Total Charges patronales | U3: Coût salarial | V3: Soins Medicaux 23$ par famille | W3: Autre prime | X3: Frais de Services 9% | Y3: TVA 16% Frais de Services | Z3: Total Employeur mensuel
F4: Jrs prestés | G4: Jour maladie
A5: 1 | B5: BOUSSE BONDJEMBO RAPHAEL | C5: COACH FITNESS | D5: BC0239 | E5: Kinshasa | F5: 22 | H5: 180.0041986 | I5: 189.4781038 | J5: 13.65 | K5: 56.84 | L5: 66 | M5: 9.473905192 | N5: 27 | O5: 336.47 | P5: 300 | Q5: 24.6321535 | R5: 3.789562077 | S5: 0.3789562077 | T5: 28.80067178 | U5: 365.27 | V5: 23 | W5: 0 | X5: 27 | Y5: 4.32 | Z5: 419.59
A6: 2 | B6: WANGO GBENI GBAGBA FREDDY | C6: COACH FITNESS | D6: BC0240 | E6: Kinshasa | F6: 22 | H6: 180.0041986 | I6: 189.4781038 | J6: 13.65 | K6: 56.84 | L6: 66 | M6: 9.473905192 | N6: 27 | O6: 336.47 | P6: 300 | Q6: 24.6321535 | R6: 3.789562077 | S6: 0.3789562077 | T6: 28.80067178 | U6: 365.27 | V6: 23 | W6: 0 | X6: 27 | Y6: 4.32 | Z6: 419.59
A7: 3 | B7: KENA MWAUKE JUNIOR | C7: COACH FITNESS | D7: BCO241 | E7: Kinshasa | F7: 21 | H7: 111.3811738 | I7: 117.2433409 | J7: 10 | K7: 35.17300226 | L7: 66 | M7: 5.862167043 | N7: 16.7 | O7: 242.56 | P7: 220 | Q7: 15.24163431 | R7: 2.344866817 | S7: 0.2344866817 | T7: 17.82098781 | U7: 260.38 | V7: 23 | W7: 0 | X7: 19.8 | Y7: 3.16 | Z7: 306.34
A8: 4 | B8: MASIALA NELSON | C8: COACH YOGA | D8: BC0248 | E8: Kinshasa | F8: 26 | H8: 94.22541761 | I8: 99.18465011 | J8: FIXE | K8: 29.75539503 | L8: 78 | M8: 4.959232506 | N8: 14.13 | O8: 219.09 | P8: 200 | Q8: 12.89400451 | R8: 1.983693002 | S8: 0.1983693002 | T8: 15.07606682 | U8: 234.17 | V8: 23 | W8: 0 | X8: 18 | Y8: 3 | Z8: 278.17
A9: 5 | B9: EKONDA MAPHULU DANNY | C9: MAITRE NAGEUR | D9: BC0298 | E9: Kinshasa | F9: 26 | H9: 351.5617607 | I9: 370.0650113 | J9: FIXE | K9: 111.0195034 | L9: 78 | M9: 18.50325056 | N9: 52.7 | O9: 571.2 | P9: 500 | Q9: 48.10845147 | R9: 7.401300226 | S9: 0.7401300226 | T9: 56.24988172 | U9: 627.45 | V9: 23 | W9: 0 | X9: 45 | Y9: 7.2 | Z9: 702.65
A10: 6 | B10: MUZINGA MAFUTA RICHARD | C10: PISCINISTE | D10: BC0299 | E10: Kinshasa | F10: 26 | H10: 222.8935892 | I10: 234.6248307 | J10: FIXE | K10: 70.38744921 | L10: 78 | M10: 11.73124153 | N10: 33.4 | O10: 395.13 | P10: 350 | Q10: 30.50122799 | R10: 4.692496614 | S10: 0.4692496614 | T10: 35.66297427 | U10: 430.79 | V10: 23 | W10: 0 | X10: 31.5 | Y10: 5.04 | Z10: 490.33
A11: 7 | B11: KASONGO GILMA | C11: CUISINIER | E11: Kinshasa | F11: 24 | H11: 97.66 | I11: 102.7963883 | J11: 8.5 | K11: 31 | L11: 72 | M11: 5.139819413 | N11: 15 | O11: 224.14 | P11: 204 | Q11: 13.36353047 | R11: 2.055927765 | S11: 0.2055927765 | T11: 15.62505102 | U11: 240 | V11: 23 | W11: 0 | X11: 18.36 | Y11: 3 | Z11: 284.36
A12: 8 | B12: MAVINGA CONCILIE | C12: COMMIS DE CUISINE | E12: Kinshasa | F12: 27 | H12: 119.9590519 | I12: 126.2726862 | J12: 8.5 | K12: 37.88 | L12: 69 | M12: 6.31 | N12: 18 | O12: 254.31 | P12: 230 | Q12: 16.41544921 | R12: 2.525453725 | S12: 0.2525453725 | T12: 19.19344831 | U12: 273.5 | V12: 23 | W12: 0 | X12: 21 | Y12: 3.36 | Z12: 321
A13: 9 | B13: NGOBIE MAURICE | C13: COMMIS DE CUISINE | E13: Kinshasa | F13: 24 | H13: 97.66 | I13: 102.7963883 | J13: 8.5 | K13: 31 | L13: 72 | M13: 5.139819413 | N13: 15 | O13: 224.14 | P13: 204 | Q13: 13.36353047 | R13: 2.055927765 | S13: 0.2055927765 | T13: 15.62505102 | U13: 240 | V13: 23 | W13: 0 | X13: 18.36 | Y13: 3 | Z13: 284.36
A14: 10 | B14: TSHUNZA KALONJI JONATHAN | C14: STEWARDING | E14: Kinshasa | F14: 24 | H14: 97.66 | I14: 102.7963883 | J14: 8.5 | K14: 31 | L14: 72 | M14: 5.139819413 | N14: 15 | O14: 224.14 | P14: 204 | Q14: 13.36353047 | R14: 2.055927765 | S14: 0.2055927765 | T14: 15.62505102 | U14: 240 | V14: 23 | W14: 0 | X14: 18.36 | Y14: 3 | Z14: 284.36
A15: 11 | B15: MUNGA DUMUNU LESLY FANNY | C15: AGENT COMM | E15: Kinshasa | F15: 15 | H15: 120.8168397 | I15: 127.1756208 | J15: 15.38 | K15: 38.15268623 | L15: 36 | M15: 6.36 | N15: 18.12 | O15: 255.48 | P15: 231 | Q15: 16.5328307 | R15: 2.543512415 | S15: 0.2543512415 | T15: 19.33069436 | U15: 274.81 | V15: 23 | W15: 0 | X15: 20.79 | Y15: 3.32 | Z15: 321.92
A16: 12 | B16: KOLANGAS HENRY | C16: WELCOMER | D16: BC0200 | E16: Kinshasa | F16: 22 | H16: 83.40772 | I16: 87.7976 | J16: 8.5 | K16: 26.33928 | L16: 66 | M16: 4.39 | N16: 12.51 | O16: 203.9 | P16: 187 | Q16: 11.413688 | R16: 1.755952 | S16: 0.1755952 | T16: 13.3452352 | U16: 217.25 | V16: 23 | W16: 0 | X16: 16.83 | Y16: 3 | Z16: 260.08
A17: 13 | B17: BILAMBO JOHN | C17: WELCOMER | D17: BC0207 | E17: Kinshasa | F17: 20 | H17: 70.48772 | I17: 74.1976 | J17: 8.5 | K17: 22.26 | L17: 60 | M17: 3.71 | N17: 10.57 | O17: 184.28 | P17: 170 | Q17: 9.645688 | R17: 1.483952 | S17: 0.1483952 | T17: 11.2780352 | U17: 195.56 | V17: 23 | W17: 0 | X17: 15.3 | Y17: 2.44 | Z17: 236.3
A18: 14 | B18: KINAMVUIDI FORTUNAT | C18: WELCOMER | E18: Kinshasa | F18: 26 | H18: 112.2389616 | I18: 118.1462754 | J18: 8.5 | K18: 35.44388262 | L18: 78 | M18: 5.90731377 | N18: 16.83 | O18: 243.74 | P18: 221 | Q18: 15.3590158 | R18: 2.362925508 | S18: 0.2362925508 | T18: 17.95823386 | U18: 261.69 | V18: 23 | W18: 0 | X18: 19.89 | Y18: 3.1824 | Z18: 307.76
A19: 15 | B19: NSUMBU DAVE | C19: STANDARDISTE | D19: BC0202 | E19: Kinshasa | F19: 22 | H19: 212.6001354 | I19: 223.7896163 | J19: 15.38 | K19: 67.13688488 | L19: 66 | M19: 11.19 | N19: 19.13 | O19: 368.32 | P19: 338 | Q19: 29.09265011 | R19: 4.475792325 | S19: 0.4475792325 | T19: 34.01602167 | U19: 402.34 | V19: 23 | W19: 0 | X19: 30.42 | Y19: 4.86 | Z19: 460.62
A20: 16 | B20: MAKAYA CHRISTIE | C20: RECEPTIONNISTE | D20: BC0242 | E20: Kinshasa | F20: 22 | H20: 212.6001354 | I20: 223.7896163 | J20: 15.38 | K20: 67.13688488 | L20: 66 | M20: 11.19 | N20: 19.13 | O20: 368.32 | P20: 338 | Q20: 29.09265011 | R20: 4.475792325 | S20: 0.4475792325 | T20: 34.01602167 | U20: 402.34 | V20: 23 | W20: 0 | X20: 30.42 | Y20: 4.86 | Z20: 460.62
A21: 17 | B21: MAFUTA DIVINE | C21: RECEPTIONNISTE | D21: BC0252 | E21: Kinshasa | F21: 22 | H21: 212.6001354 | I21: 223.7896163 | J21: 15.38 | K21: 67.13688488 | L21: 66 | M21: 11.19 | N21: 19.13 | O21: 368.32 | P21: 338 | Q21: 29.09265011 | R21: 4.475792325 | S21: 0.4475792325 | T21: 34.01602167 | U21: 402.34 | V21: 23 | W21: 0 | X21: 30.42 | Y21: 4.86 | Z21: 460.62
A22: 18 | B22: NSUKAMI JESSICA JULIANNA | C22: AGENT RESERVAT | D22: BC0253 | E22: Kinshasa | F22: 22 | H22: 212.6001354 | I22: 223.7896163 | J22: 15.38 | K22: 67.13688488 | L22: 66 | M22: 11.19 | N22: 19.13 | O22: 368.32 | P22: 338 | Q22: 29.09265011 | R22: 4.475792325 | S22: 0.4475792325 | T22: 34.01602167 | U22: 402.34 | V22: 23 | W22: 0 | X22: 30.42 | Y22: 4.86 | Z22: 460.62
A23: 19 | B23: TSHISENSA JONATHAN | C23: CHAUFFEUR | D23: BC0254 | E23: Kinshasa | F23: 22 | H23: 111.3811738 | I23: 117.2433409 | J23: 10 | K23: 35.17300226 | L23: 66 | M23: 5.862167043 | N23: 16.7 | O23: 242.56 | P23: 220 | Q23: 15.24163431 | R23: 2.344866817 | S23: 0.2344866817 | T23: 17.82098781 | U23: 260.38 | V23: 23 | W23: 0 | X23: 19.8 | Y23: 3.16 | Z23: 306.34
A24: 20 | B24: MASAMBA CHRISTIVIE | C24: PROTOCOLE | E24: Kinshasa | F24: 21 | H24: 102.8032957 | I24: 108.2139955 | J24: 10 | K24: 32.46419865 | L24: 63 | M24: 5.410699774 | N24: 15.42 | O24: 230.83 | P24: 210 | Q24: 14.06781941 | R24: 2.16427991 | S24: 0.216427991 | T24: 16.44852731 | U24: 247.28 | V24: 23 | W24: 0 | X24: 18.9 | Y24: 3.02 | Z24: 292.2
A25: 21 | B25: NGOYI FISTON | C25: STANDARDISTE | D25: BC0223 | E25: Kinshasa | F25: 25 | H25: 137.11 | I25: 144.331377 | J25: 10 | K25: 43.29941309 | L25: 75 | M25: 7.216568849 | N25: 21 | O25: 278.22 | P25: 250 | Q25: 18.76307901 | R25: 2.88662754 | S25: 0.288662754 | T25: 21.9383693 | U25: 300.16 | V25: 23 | W25: 0 | X25: 22.5 | Y25: 3.6 | Z25: 349.26
A26: 22 | B26: NTUMBA ELIE | C26: CHAUFFEUR | D26: BC0218 | E26: Kinshasa | F26: 21 | H26: 102.8032957 | I26: 108.2139955 | J26: 10 | K26: 32.46419865 | L26: 63 | M26: 5.410699774 | N26: 15.42 | O26: 230.83 | P26: 210 | Q26: 14.06781941 | R26: 2.16427991 | S26: 0.216427991 | T26: 16.44852731 | U26: 247.28 | V26: 23 | W26: 0 | X26: 18.9 | Y26: 3.02 | Z26: 292.2
A27: 23 | B27: TSHILUMBA JOEL | C27: CHAUFFEUR | D27: BC0243 | E27: Kinshasa | F27: 21 | H27: 102.8032957 | I27: 108.2139955 | J27: 10 | K27: 32.46419865 | L27: 63 | M27: 5.410699774 | N27: 15.42 | O27: 230.83 | P27: 210 | Q27: 14.06781941 | R27: 2.16427991 | S27: 0.216427991 | T27: 16.44852731 | U27: 247.28 | V27: 23 | W27: 0 | X27: 18.9 | Y27: 3.02 | Z27: 292.2
A28: 24 | B28: BENDERA GLORIA | C28: RECEPTIONNISTE | D28: BC0230 | E28: Kinshasa | F28: 22 | H28: 212.6001354 | I28: 223.7896163 | J28: 15.38 | K28: 67.13688488 | L28: 66 | M28: 11.19 | N28: 19.13 | O28: 368.32 | P28: 338 | Q28: 29.09265011 | R28: 4.475792325 | S28: 0.4475792325 | T28: 34.01602167 | U28: 402.34 | V28: 23 | W28: 0 | X28: 30.42 | Y28: 4.86 | Z28: 460.62
A29: 25 | B29: KATAMBAY KABWE REAGAN | C29: SUPERVISEUR | D29: BC0244 | E29: Kinshasa | F29: 20 | H29: 186.8665011 | I29: 196.7015801 | J29: 15.38 | K29: 59.01047404 | L29: 60 | M29: 9.835079007 | N29: 28.03 | O29: 345.87 | P29: 308 | Q29: 25.57120542 | R29: 3.934031603 | S29: 0.3934031603 | T29: 29.89864018 | U29: 375.77 | V29: 23 | W29: 0 | X29: 27.72 | Y29: 4.43 | Z29: 430.92
A30: 26 | B30: MISSAGUY JONATHAN | C30: VALET | D30: BC0214 | E30: Kinshasa | F30: 27 | H30: 119.9590519 | I30: 126.2726862 | J30: 8.5 | K30: 37.88 | L30: 69 | M30: 6.31 | N30: 18 | O30: 254.31 | P30: 230 | Q30: 16.41544921 | R30: 2.525453725 | S30: 0.2525453725 | T30: 19.19344831 | U30: 273.5 | V30: 23 | W30: 0 | X30: 21 | Y30: 3.36 | Z30: 321
A31: 27 | B31: LUTETE CHRISTIAN | C31: VALET | D31: BC0213 | E31: Kinshasa | F31: 23 | H31: 90.79426637 | I31: 95.57291196 | J31: 8.5 | K31: 28.67 | L31: 69 | M31: 4.778645598 | N31: 14 | O31: 215 | P31: 196 | Q31: 12.42447856 | R31: 1.911458239 | S31: 0.1911458239 | T31: 14.52708262 | U31: 230 | V31: 23 | W31: 0 | X31: 18 | Y31: 3 | Z31: 274
A32: 28 | B32: MUTUALE SUMBILA PATIENT | C32: VALET | D32: BC0235 | E32: Kinshasa | F32: 22 | H32: 83.40772 | I32: 87.7976 | J32: 8.5 | K32: 26.33928 | L32: 66 | M32: 4.39 | N32: 12.51 | O32: 203.9 | P32: 187 | Q32: 11.413688 | R32: 1.755952 | S32: 0.1755952 | T32: 13.3452352 | U32: 217.25 | V32: 23 | W32: 0 | X32: 16.83 | Y32: 3 | Z32: 260.08
A33: 29 | B33: MBIKAYI FABRICE | C33: VALET | D33: BC0227 | E33: Kinshasa | F33: 21 | H33: 77.32772 | I33: 81.3976 | J33: 8.5 | K33: 24.41928 | L33: 63 | M33: 4.07 | N33: 12 | O33: 195 | P33: 179 | Q33: 10.581688 | R33: 1.627952 | S33: 0.1627952 | T33: 12.3724352 | U33: 207.37 | V33: 23 | W33: 0 | X33: 16.11 | Y33: 3 | Z33: 249.48
A34: 30 | B34: BOLISOMI FATHY | C34: VALET | D34: BC0262 | E34: Kinshasa | F34: 25 | H34: 105.3766591 | I34: 110.9227991 | J34: 8.5 | K34: 33.27683973 | L34: 75 | M34: 5.55 | N34: 15.8 | O34: 234.35 | P34: 213 | Q34: 14.41996388 | R34: 2.218455982 | S34: 0.2218455982 | T34: 16.86026546 | U34: 251.21 | V34: 23 | W34: 0 | X34: 19.17 | Y34: 3.0672 | Z34: 296.4472
A35: 31 | B35: KOSEKO CESAR | C35: VALET | D35: BC0281 | E35: Kinshasa | F35: 24 | H35: 97.65656885 | I35: 102.7963883 | J35: 8.5 | K35: 31 | L35: 72 | M35: 5.139819413 | N35: 15 | O35: 224.14 | P35: 204 | Q35: 13.36353047 | R35: 2.055927765 | S35: 0.2055927765 | T35: 15.62505102 | U35: 240 | V35: 23 | W35: 0 | X35: 18.36 | Y35: 3 | Z35: 284.36
P36: 7828 | U36: 9335.32 | V36: 713 | X36: 705.48 | Y36: 114.32 | Z36: 10868.12
P37: =SUM(P5:P35) -> 7828 | U37: =SUM(U5:U35) -> 9335.32 | V37: =SUM(V5:V35) -> 713 | X37: =SUM(X5:X35) -> 705.48 | Y37: =SUM(Y5:Y35) -> 114.3196 | Z37: =U37+V37+X37+Y37 -> 10868.1196
P38: =SUM(P36-P37) -> 0 | U38: =SUM(U36-U37) -> 0 | V38: =SUM(V36-V37) -> 0 | X38: =SUM(X36-X37) -> -1.136868377e-13 | Y38: =SUM(Y36-Y37) -> 0.0004 | Z38: =SUM(Z36-Z37) -> 0.0004000000008

Sheet Feuil6
J2: ETAT DE PAIE GRANDS HOTELS DU CONGO JUILLET 2022
A3: N° | B3: Noms | C3: Fonction | D3: Matricule | E3: Localisation | F3: Pointage du mois | H3: Base imposable | I3: Plafond INSS | J3: Salaire journalier | K3: Ind. Logement | L3: Ind. Transp | M3: CNSS QPO | N3: IPR | O3: Masse salariale | P3: Net à payer | Q3: CNSS QPP | R3: INPP | S3: ONEM | T3: Total Charges patronales | U3: Coût salarial | V3: Soins Medicaux 23$ par famille | W3: Autre prime | X3: Frais de Services 9% | Y3: TVA 16% Frais de Services | Z3: Total Employeur mensuel
F4: Jrs prestés | G4: Jour maladie
A5: 32 | B5: KUTADISA BENIE | C5: VALET | D5: BC0257 | E5: Kinshasa | F5: 25 | H5: 105.3766591 | I5: 110.9227991 | J5: 8.5 | K5: 33.27683973 | L5: 75 | M5: 5.55 | N5: 15.8 | O5: 234.35 | P5: 213 | Q5: 14.41996388 | R5: 2.218455982 | S5: 0.2218455982 | T5: 16.86026546 | U5: 251.21 | V5: 23 | W5: 0 | X5: 19.17 | Y5: 3.0672 | Z5: 296.4472
A6: 33 | B6: LAKIORE NGAPI JUNIOR | C6: VALET | D6: BC0273 | E6: Kinshasa | F6: 24 | H6: 97.66 | I6: 102.7963883 | J6: 8.5 | K6: 31 | L6: 72 | M6: 5.139819413 | N6: 15 | O6: 224.14 | P6: 204 | Q6: 13.36353047 | R6: 2.055927765 | S6: 0.2055927765 | T6: 15.62505102 | U6: 240 | V6: 23 | W6: 0 | X6: 18.36 | Y6: 3 | Z6: 284.36
A7: 34 | B7: LOMBE BLANCHARD | C7: VALET | D7: BC0274 | E7: Kinshasa | F7: 27 | H7: 119.9590519 | I7: 126.2726862 | J7: 8.5 | K7: 37.88 | L7: 69 | M7: 6.31 | N7: 18 | O7: 254.31 | P7: 230 | Q7: 16.41544921 | R7: 2.525453725 | S7: 0.2525453725 | T7: 19.19344831 | U7: 273.5 | V7: 23 | W7: 0 | X7: 21 | Y7: 3.36 | Z7: 320.86
A8: 35 | B8: MBOYO BRUNO | C8: VALET | D8: BC0282 | E8: Kinshasa | F8: 29 | H8: 134.5414447 | I8: 141.6225734 | J8: 8.5 | K8: 42.48677201 | L8: 78.003 | M8: 7.081128668 | N8: 20.18 | O8: 274.26 | P8: 247 | Q8: 18.41093454 | R8: 2.832451467 | S8: 0.2832451467 | T8: 21.52663115 | U8: 295.79 | V8: 23 | W8: 0 | X8: 22.23 | Y8: 3.5 | Z8: 344.52
A9: 36 | B9: MUNGEY CEDRICK | C9: VALET | D9: BC0283 | E9: Kinshasa | F9: 26 | H9: 112.2389616 | I9: 118.1462754 | J9: 8.5 | K9: 35.44388262 | L9: 78 | M9: 5.90731377 | N9: 16.83 | O9: 243.74 | P9: 221 | Q9: 15.3590158 | R9: 2.362925508 | S9: 0.2362925508 | T9: 17.95823386 | U9: 261.69 | V9: 23 | W9: 0 | X9: 19.89 | Y9: 3.1824 | Z9: 307.76
A10: 37 | B10: NDOFUSU OLIVIER | C10: VALET | D10: BC0270 | E10: Kinshasa | F10: 24 | H10: 97.66 | I10: 102.7963883 | J10: 8.5 | K10: 31 | L10: 72 | M10: 5.139819413 | N10: 15 | O10: 224.14 | P10: 204 | Q10: 13.36353047 | R10: 2.055927765 | S10: 0.2055927765 | T10: 15.62505102 | U10: 240 | V10: 23 | W10: 0 | X10: 18.36 | Y10: 3 | Z10: 284.36
A11: 38 | B11: MBUYI NAOMIE | C11: VALET | D11: BC0249 | E11: Kinshasa | F11: 15 | H11: 38.56772 | I11: 40.5976 | J11: 8.5 | K11: 12.17928 | L11: 45 | M11: 2.02988 | N11: 5.78 | O11: 135.81 | P11: 128 | Q11: 5.277688 | R11: 0.811952 | S11: 0.0811952 | T11: 6.1708352 | U11: 141.98 | V11: 23 | W11: 0 | X11: 11.52 | Y11: 1.84 | Z11: 178.34
A12: 39 | B12: MASINGO IRENE | C12: VALET | D12: BC0300 | E12: Kinshasa | F12: 23 | H12: 90.79426637 | I12: 95.57291196 | J12: 8.5 | K12: 28.67 | L12: 69 | M12: 4.778645598 | N12: 14 | O12: 215 | P12: 196 | Q12: 12.42447856 | R12: 1.911458239 | S12: 0.1911458239 | T12: 14.52708262 | U12: 230 | V12: 23 | W12: 0 | X12: 18 | Y12: 3 | Z12: 274
A13: 40 | B13: MAFUTA BIENVENU | C13: EQUIPIER | D13: BC0215 | E13: Kinshasa | F13: 25 | H13: 105.3766591 | I13: 110.9227991 | J13: 8.5 | K13: 33.27683973 | L13: 75 | M13: 5.55 | N13: 15.8 | O13: 234.35 | P13: 213 | Q13: 14.41996388 | R13: 2.218455982 | S13: 0.2218455982 | T13: 16.86026546 | U13: 251.21 | V13: 23 | W13: 0 | X13: 19.17 | Y13: 3.0672 | Z13: 296.4472
A14: 41 | B14: MATONDO KONDE ELVIS | C14: EQUIPIER | D14: BC0230 | E14: Kinshasa | F14: 23 | H14: 90.79426637 | I14: 95.57291196 | J14: 8.5 | K14: 28.67 | L14: 69 | M14: 4.778645598 | N14: 14 | O14: 215 | P14: 196 | Q14: 12.42447856 | R14: 1.911458239 | S14: 0.1911458239 | T14: 14.52708262 | U14: 230 | V14: 23 | W14: 0 | X14: 18 | Y14: 3 | Z14: 274
A15: 42 | B15: NZEY BLAISE | C15: EQUIPIER | D15: BC0234 | E15: Kinshasa | F15: 27 | H15: 119.9590519 | I15: 126.2726862 | J15: 8.5 | K15: 37.88 | L15: 69 | M15: 6.31 | N15: 18 | O15: 254.31 | P15: 230 | Q15: 16.41544921 | R15: 2.525453725 | S15: 0.2525453725 | T15: 19.19344831 | U15: 273.5 | V15: 23 | W15: 0 | X15: 21 | Y15: 3.36 | Z15: 320.86
A16: 43 | B16: NDJOLI FERDINAND DICKY | C16: EQUIPIER | D16: BC0237 | E16: Kinshasa | F16: 23 | H16: 90.79426637 | I16: 95.57291196 | J16: 8.5 | K16: 28.67 | L16: 69 | M16: 4.778645598 | N16: 14 | O16: 215 | P16: 196 | Q16: 12.42447856 | R16: 1.911458239 | S16: 0.1911458239 | T16: 14.52708262 | U16: 230 | V16: 23 | W16: 0 | X16: 18 | Y16: 3 | Z16: 274
A17: 44 | B17: KABUNDA PIERROT | C17: EQUIPIER | D17: BC0247 | E17: Kinshasa | F17: 21 | H17: 77.32772 | I17: 81.3976 | J17: 8.5 | K17: 24.41928 | L17: 63 | M17: 4.07 | N17: 12 | O17: 195 | P17: 179 | Q17: 10.581688 | R17: 1.627952 | S17: 0.1627952 | T17: 12.3724352 | U17: 207.37 | V17: 23 | W17: 0 | X17: 16.11 | Y17: 3 | Z17: 249.48
A18: 45 | B18: ATUBUNA ANTA | C18: EQUIPIER | D18: BC0263 | E18: Kinshasa | F18: 24 | H18: 97.65656885 | I18: 102.7963883 | J18: 8.5 | K18: 31 | L18: 72 | M18: 5.139819413 | N18: 15 | O18: 224.14 | P18: 204 | Q18: 13.36353047 | R18: 2.055927765 | S18: 0.2055927765 | T18: 15.62505102 | U18: 240 | V18: 23 | W18: 0 | X18: 18.36 | Y18: 3 | Z18: 284.36
A19: 46 | B19: BULUNGU EMMANUEL | C19: EQUIPIER | D19: BC0298 | E19: Kinshasa | F19: 27 | H19: 119.96 | I19: 126.2726862 | J19: 8.5 | K19: 37.88 | L19: 69 | M19: 6.31 | N19: 18 | O19: 254.31 | P19: 230 | Q19: 16.41544921 | R19: 2.525453725 | S19: 0.2525453725 | T19: 19.19344831 | U19: 273.5 | V19: 23 | W19: 0 | X19: 21 | Y19: 3.36 | Z19: 320.86
A20: 47 | B20: MALEMBE MASASU CALEB | C20: EQUIPIER | D20: BC0275 | E20: Kinshasa | F20: 26 | H20: 112.2389616 | I20: 118.1462754 | J20: 8.5 | K20: 35.44388262 | L20: 78 | M20: 5.90731377 | N20: 16.83 | O20: 243.74 | P20: 221 | Q20: 15.3590158 | R20: 2.362925508 | S20: 0.2362925508 | T20: 17.95823386 | U20: 261.69 | V20: 23 | W20: 0 | X20: 19.89 | Y20: 3.1824 | Z20: 307.76
A21: 48 | B21: MIZELE GUELORD | C21: EQUIPIER | D21: BC0276 | E21: Kinshasa | F21: 18 | H21: 57.56772 | I21: 60.5976 | J21: 8.5 | K21: 18.17928 | L21: 54 | M21: 3.02988 | N21: 8.63 | O21: 164.66 | P21: 153 | Q21: 7.877688 | R21: 1.211952 | S21: 0.1211952 | T21: 9.2108352 | U21: 173.87 | V21: 23 | W21: 0 | X21: 13.77 | Y21: 2.2 | Z21: 212.84
A22: 49 | B22: NGOY ROLLY | C22: EQUIPIER | D22: BC0266 | E22: Kinshasa | F22: 23 | H22: 90.79 | I22: 95.57291196 | J22: 8.5 | K22: 28.67 | L22: 69 | M22: 4.778645598 | N22: 14 | O22: 215 | P22: 196 | Q22: 12.42447856 | R22: 1.911458239 | S22: 0.1911458239 | T22: 14.52708262 | U22: 230 | V22: 23 | W22: 0 | X22: 18 | Y22: 3 | Z22: 274
A23: 50 | B23: APELA MABOSO MATHY | C23: EQUIPIER | D23: BC309 | E23: Kinshasa | F23: 22 | H23: 111.3811738 | I23: 117.2433409 | J23: 10 | K23: 35.17300226 | L23: 66 | M23: 5.862167043 | N23: 16.7 | O23: 242.56 | P23: 220 | Q23: 15.24163431 | R23: 2.344866817 | S23: 0.2344866817 | T23: 17.82098781 | U23: 260.38 | V23: 23 | W23: 0 | X23: 19.8 | Y23: 3.16 | Z23: 306.34
A24: 51 | B24: BEKA NZONZIMBU BODARD | C24: EQUIPIER | D24: BC310 | E24: Kinshasa | F24: 27 | H24: 154.2705643 | I24: 162.3900677 | J24: 10 | K24: 48.71702032 | L24: 78 | M24: 8.119503386 | N24: 23.14 | O24: 301.26 | P24: 270 | Q24: 21.1107088 | R24: 3.247801354 | S24: 0.3247801354 | T24: 24.68329029 | U24: 312.83 | V24: 23 | W24: 0 | X24: 24.3 | Y24: 3.88 | Z24: 364.01
A25: 52 | B25: NTUMBA DISANKA TIMOTHE | C25: TAPISSIER | D25: BC0232 | E25: Kinshasa | F25: 21 | H25: 138.8303837 | I25: 146.137246 | J25: 12 | K25: 43.84117381 | L25: 61 | M25: 7.31 | N25: 20.82 | O25: 280.13 | P25: 252 | Q25: 18.99784199 | R25: 2.922744921 | S25: 0.2922744921 | T25: 22.2128614 | U25: 302.34 | V25: 23 | W25: 0 | X25: 22.68 | Y25: 3.62 | Z25: 351.64
A26: 53 | B26: TUBAJIKA FAN-FAN | C26: LINGER | D26: BC0245 | E26: Kinshasa | F26: 23 | H26: 90.79426637 | I26: 95.57291196 | J26: 8.5 | K26: 28.67 | L26: 69 | M26: 4.778645598 | N26: 14 | O26: 215 | P26: 196 | Q26: 12.42447856 | R26: 1.911458239 | S26: 0.1911458239 | T26: 14.52708262 | U26: 230 | V26: 23 | W26: 0 | X26: 18 | Y26: 3 | Z26: 274
A27: 54 | B27: TSHIBAMBE KADIMA ALPHONSE | C27: REPASSEUR | D27: BC0228 | E27: Kinshasa | F27: 27 | H27: 119.96 | I27: 126.2726862 | J27: 8.5 | K27: 37.88 | L27: 69 | M27: 6.31 | N27: 18 | O27: 254.31 | P27: 230 | Q27: 16.41544921 | R27: 2.525453725 | S27: 0.2525453725 | T27: 19.19344831 | U27: 273.5 | V27: 23 | W27: 0 | X27: 21 | Y27: 3.36 | Z27: 320.86
A28: 55 | B28: BANGANA MUSSO BOBO | C28: REPASSEUR | D28: BC0229 | E28: Kinshasa | F28: 23 | H28: 90.79 | I28: 95.57291196 | J28: 8.5 | K28: 28.67 | L28: 69 | M28: 4.778645598 | N28: 14 | O28: 215 | P28: 196 | Q28: 12.42447856 | R28: 1.911458239 | S28: 0.1911458239 | T28: 14.52708262 | U28: 230 | V28: 23 | W28: 0 | X28: 18 | Y28: 3 | Z28: 274
A29: 56 | B29: IMBAY MANIO PAPY BLANCHY | C29: REPASSEUR | D29: BC0233 | E29: Kinshasa | F29: 27 | H29: 119.96 | I29: 126.2726862 | J29: 8.5 | K29: 37.88 | L29: 69 | M29: 6.31 | N29: 18 | O29: 254.31 | P29: 230 | Q29: 16.41544921 | R29: 2.525453725 | S29: 0.2525453725 | T29: 19.19344831 | U29: 273.5 | V29: 23 | W29: 0 | X29: 21 | Y29: 3.36 | Z29: 320.86
A30: 57 | B30: NSIMBA SEVERAIN | C30: REPASSEUR | D30: BC0246 | E30: Kinshasa | F30: 24 | H30: 97.65656885 | I30: 102.7963883 | J30: 8.5 | K30: 31 | L30: 72 | M30: 5.139819413 | N30: 15 | O30: 224.14 | P30: 204 | Q30: 13.36353047 | R30: 2.055927765 | S30: 0.2055927765 | T30: 15.62505102 | U30: 240 | V30: 23 | W30: 0 | X30: 18.36 | Y30: 3 | Z30: 284.36
A31: 58 | B31: SOMANA MICHEL | C31: REPASSEUR | D31: BC0261 | E31: Kinshasa | F31: 23 | H31: 90.79426637 | I31: 95.57291196 | J31: 8.5 | K31: 28.67 | L31: 69 | M31: 4.778645598 | N31: 14 | O31: 215 | P31: 196 | Q31: 12.42447856 | R31: 1.911458239 | S31: 0.1911458239 | T31: 14.52708262 | U31: 230 | V31: 23 | W31: 0 | X31: 18 | Y31: 3 | Z31: 274
A32: 59 | B32: FONDO FILS | C32: REPASSEUR | D32: BC0301 | E32: Kinshasa | F32: 21 | H32: 77.33 | I32: 81.3976 | J32: 8.5 | K32: 24.41928 | L32: 63 | M32: 4.07 | N32: 12 | O32: 195 | P32: 179 | Q32: 10.581688 | R32: 1.627952 | S32: 0.1627952 | T32: 12.3724352 | U32: 207.37 | V32: 23 | W32: 0 | X32: 16.11 | Y32: 3 | Z32: 249.48
A33: 60 | B33: BACHO CHOGO PRINCE | C33: HOUSE LAUDRY | D33: BC0264 | E33: Kinshasa | F33: 23 | H33: 90.79426637 | I33: 95.57291196 | J33: 8.5 | K33: 28.67 | L33: 69 | M33: 4.778645598 | N33: 14 | O33: 215 | P33: 196 | Q33: 12.42447856 | R33: 1.911458239 | S33: 0.1911458239 | T33: 14.52708262 | U33: 230 | V33: 23 | W33: 0 | X33: 18 | Y33: 3 | Z33: 274
A34: 61 | B34: BISONSA REGINA PRECIEUSE | C34: HOUSE LAUDRY | D34: BC0256 | E34: Kinshasa | F34: 23 | H34: 90.79426637 | I34: 95.57291196 | J34: 8.5 | K34: 28.67 | L34: 69 | M34: 4.778645598 | N34: 14 | O34: 215 | P34: 196 | Q34: 12.42447856 | R34: 1.911458239 | S34: 0.1911458239 | T34: 14.52708262 | U34: 230 | V34: 23 | W34: 0 | X34: 18 | Y34: 3 | Z34: 274
A35: 62 | B35: KABA ALPHONSE | C35: HOUSE LAUDRY | D35: BC0265 | E35: Kinshasa | F35: 23 | H35: 90.79426637 | I35: 95.57291196 | J35: 8.5 | K35: 28.67 | L35: 69 | M35: 4.778645598 | N35: 14 | O35: 215 | P35: 196 | Q35: 12.42447856 | R35: 1.911458239 | S35: 0.1911458239 | T35: 14.52708262 | U35: 230 | V35: 23 | W35: 0 | X35: 18 | Y35: 3 | Z35: 274
P36: 6422 | U36: 7555.23 | V36: 713 | X36: 583.08 | Y36: 95.5 | Z36: 8946.81
P37: =SUM(P5:P35) -> 6422 | U37: =SUM(U5:U35) -> 7555.23 | V37: =SUM(V5:V35) -> 713 | X37: =SUM(X5:X35) -> 583.08 | Y37: =SUM(Y5:Y35) -> 95.4992 | Z37: =U37+V37+X37+Y37 -> 8946.8092
P38: =SUM(P36-P37) -> 0 | U38: =SUM(U36-U37) -> 0 | V38: =SUM(V36-V37) -> 0 | X38: =SUM(X36-X37) -> 0 | Y38: =SUM(Y36-Y37) -> 0.0008 | Z38: =SUM(Z36-Z37) -> 0.0007999999998

Sheet Feuil7
J2: ETAT DE PAIE GRANDS HOTELS DU CONGO JUILLET 2022
A3: N° | B3: Noms | C3: Fonction | D3: Matricule | E3: Localisation | F3: Pointage du mois | H3: Base imposable | I3: Plafond INSS | J3: Salaire journalier | K3: Ind. Logement | L3: Ind. Transp | M3: CNSS QPO | N3: IPR | O3: Masse salariale | P3: Net à payer | Q3: CNSS QPP | R3: INPP | S3: ONEM | T3: Total Charges patronales | U3: Coût salarial | V3: Soins Medicaux 23$ par famille | W3: Autre prime | X3: Frais de Services 9% | Y3: TVA 16% Frais de Services | Z3: Total Employeur mensuel
F4: Jrs prestés | G4: Jour maladie
A5: 63 | B5: TENDAYI DAVID | C5: HOUSE LAUDRY | D5: BC0289 | E5: Kinshasa | F5: 23 | H5: 90.79426637 | I5: 95.57291196 | J5: 8.5 | K5: 28.67 | L5: 69 | M5: 4.778645598 | N5: 14 | O5: 215 | P5: 196 | Q5: 12.42447856 | R5: 1.911458239 | S5: 0.1911458239 | T5: 14.52708262 | U5: 230 | V5: 23 | W5: 0 | X5: 18 | Y5: 3 | Z5: 274
A6: 64 | B6: KABONGO FANNY | C6: SUPERVISEUR | D6: BC0267 | E6: Kinshasa | F6: 26 | H6: 265.6800451 | I6: 279.6632054 | J6: 15.38 | K6: 83.89896163 | L6: 78 | M6: 13.98316027 | N6: 39.85 | O6: 454 | P6: 400 | Q6: 36.3562167 | R6: 5.593264108 | S6: 0.5593264108 | T6: 42.50880722 | U6: 496.51 | V6: 23 | W6: 0 | X6: 36 | Y6: 6 | Z6: 561.51
A7: 65 | B7: KAPITA NANCY | C7: SUPERVISEUR | D7: BC0268 | E7: Kinshasa | F7: 20 | H7: 186.8665011 | I7: 196.7015801 | J7: 15.38 | K7: 59.01047404 | L7: 60 | M7: 9.835079007 | N7: 28.03 | O7: 345.87 | P7: 308 | Q7: 25.57120542 | R7: 3.934031603 | S7: 0.3934031603 | T7: 29.89864018 | U7: 375.77 | V7: 23 | W7: 0 | X7: 27.72 | Y7: 4.43 | Z7: 430.92
A8: 66 | B8: KUMBA KIONGA NEHEMIE | C8: SUPERVISEUR | D8: BC0284 | E8: Kinshasa | F8: 26 | H8: 265.6800451 | I8: 279.6632054 | J8: 15.38 | K8: 83.89896163 | L8: 78 | M8: 13.98316027 | N8: 39.85 | O8: 454 | P8: 400 | Q8: 36.3562167 | R8: 5.593264108 | S8: 0.5593264108 | T8: 42.50880722 | U8: 496.51 | V8: 23 | W8: 0 | X8: 36 | Y8: 6 | Z8: 561.51
A9: 67 | B9: PALUKU THOM | C9: SUPERVISEUR | D9: BC0299 | E9: Kinshasa | F9: 24 | H9: 239.1915576 | I9: 251.7805869 | J9: 15.38 | K9: 75.53417607 | L9: 72 | M9: 12.58902935 | N9: 35.87 | O9: 417.46 | P9: 369 | Q9: 32.7314763 | R9: 5.035611738 | S9: 0.5035611738 | T9: 38.27064921 | U9: 496.51 | V9: 23 | W9: 0 | X9: 33.21 | Y9: 5.3136 | Z9: 558.0336
A10: 68 | B10: IPAKALA FABRICE | C10: SERVEUR | D10: BC0208 | E10: Kinshasa | F10: 22 | H10: 83.40772 | I10: 87.7976 | J10: 8.5 | K10: 26.33928 | L10: 66 | M10: 4.39 | N10: 12.51 | O10: 203.9 | P10: 187 | Q10: 11.413688 | R10: 1.755952 | S10: 0.1755952 | T10: 13.3452352 | U10: 217.25 | V10: 23 | W10: 0 | X10: 16.83 | Y10: 3 | Z10: 260.08
A11: 69 | B11: SAKWA GLODIE | C11: SERVEUSE | D11: BC0209 | E11: Kinshasa | F11: 20 | H11: 70.48772 | I11: 74.1976 | J11: 8.5 | K11: 22.26 | L11: 60 | M11: 3.71 | N11: 10.57 | O11: 184.28 | P11: 170 | Q11: 9.645688 | R11: 1.483952 | S11: 0.1483952 | T11: 11.2780352 | U11: 195.56 | V11: 23 | W11: 0 | X11: 15.3 | Y11: 2.44 | Z11: 236.3
A12: 70 | B12: MONDO DORCAS | C12: SERVEUSE | D12: BC0210 | E12: Kinshasa | F12: 21 | H12: 77.32772 | I12: 81.3976 | J12: 8.5 | K12: 24.41928 | L12: 63 | M12: 4.07 | N12: 12 | O12: 195 | P12: 179 | Q12: 10.581688 | R12: 1.627952 | S12: 0.1627952 | T12: 12.3724352 | U12: 207.37 | V12: 23 | W12: 0 | X12: 16.11 | Y12: 3 | Z12: 249.48
A13: 71 | B13: MPONGO ALBA | C13: SERVEUR | D13: BC0211 | E13: Kinshasa | F13: 23 | H13: 90.79426637 | I13: 95.57291196 | J13: 8.5 | K13: 28.67 | L13: 69 | M13: 4.778645598 | N13: 14 | O13: 215 | P13: 196 | Q13: 12.42447856 | R13: 1.911458239 | S13: 0.1911458239 | T13: 14.52708262 | U13: 230 | V13: 23 | W13: 0 | X13: 18 | Y13: 3 | Z13: 274
A14: 72 | B14: KATIKA MAAN | C14: SERVEUR | D14: BC0212 | E14: Kinshasa | F14: 21 | H14: 77.32772 | I14: 81.3976 | J14: 8.5 | K14: 24.41928 | L14: 63 | M14: 4.07 | N14: 12 | O14: 195 | P14: 179 | Q14: 10.581688 | R14: 1.627952 | S14: 0.1627952 | T14: 12.3724352 | U14: 207.37 | V14: 23 | W14: 0 | X14: 16.11 | Y14: 3 | Z14: 249.48
A15: 73 | B15: ITSHIEKI REBECCA | C15: SERVEUSE | D15: BC0217 | E15: Kinshasa | F15: 21 | H15: 77.32772 | I15: 81.3976 | J15: 8.5 | K15: 24.41928 | L15: 63 | M15: 4.07 | N15: 12 | O15: 195 | P15: 179 | Q15: 10.581688 | R15: 1.627952 | S15: 0.1627952 | T15: 12.3724352 | U15: 207.37 | V15: 23 | W15: 0 | X15: 16.11 | Y15: 3 | Z15: 249.48
A16: 74 | B16: SIKI PRISCILLIA | C16: SERVEUSE | D16: BC0203 | E16: Kinshasa | F16: 22 | H16: 83.40772 | I16: 87.7976 | J16: 8.5 | K16: 26.33928 | L16: 66 | M16: 4.39 | N16: 12.51 | O16: 203.9 | P16: 187 | Q16: 11.413688 | R16: 1.755952 | S16: 0.1755952 | T16: 13.3452352 | U16: 217.25 | V16: 23 | W16: 0 | X16: 16.83 | Y16: 3 | Z16: 260.08
A17: 75 | B17: LUTETE GRACE | C17: SERVEUSE | D17: BC0204 | E17: Kinshasa | F17: 23 | H17: 90.79426637 | I17: 95.57291196 | J17: 8.5 | K17: 28.67 | L17: 69 | M17: 4.778645598 | N17: 14 | O17: 215 | P17: 196 | Q17: 12.42447856 | R17: 1.911458239 | S17: 0.1911458239 | T17: 14.52708262 | U17: 230 | V17: 23 | W17: 0 | X17: 18 | Y17: 3 | Z17: 274
A18: 76 | B18: MAKABUKA BODINA | C18: SERVEUR | D18: BC0205 | E18: Kinshasa | F18: 20 | H18: 70.48772 | I18: 74.1976 | J18: 8.5 | K18: 22.26 | L18: 60 | M18: 3.71 | N18: 10.57 | O18: 184.28 | P18: 170 | Q18: 9.645688 | R18: 1.483952 | S18: 0.1483952 | T18: 11.2780352 | U18: 195.56 | V18: 23 | W18: 0 | X18: 15.3 | Y18: 2.44 | Z18: 236.3
A19: 77 | B19: MOSENGE FISTON | C19: SERVEUR | D19: BC0206 | E19: Kinshasa | F19: 21 | H19: 77.32772 | I19: 81.3976 | J19: 8.5 | K19: 24.41928 | L19: 63 | M19: 4.07 | N19: 12 | O19: 195 | P19: 179 | Q19: 10.581688 | R19: 1.627952 | S19: 0.1627952 | T19: 12.3724352 | U19: 207.37 | V19: 23 | W19: 0 | X19: 16.11 | Y19: 3 | Z19: 249.48
A20: 78 | B20: NKUNA EMMANY | C20: SERVEUR | D20: BC0236 | E20: Kinshasa | F20: 5 | H20: 24.51 | I20: 25.8 | J20: 8.5 | K20: 7.74 | L20: 15 | M20: 1.29 | N20: 1 | O20: 45.29 | P20: 43 | Q20: 3.35 | R20: 0.52 | S20: 0.05 | T20: 3.92 | U20: 49.21 | V20: 23 | W20: 0 | X20: 3.87 | Y20: 0.61 | Z20: 76.69
A21: 79 | B21: MUBELO DIVINE | C21: SERVEUSE | D21: BC0238 | E21: Kinshasa | F21: 19 | H21: 64.40772 | I21: 67.7976 | J21: 8.5 | K21: 20.33928 | L21: 57 | M21: 3.38988 | N21: 10 | O21: 175.39 | P21: 162 | Q21: 8.813688 | R21: 1.355952 | S21: 0.1355952 | T21: 10.31 | U21: 186 | V21: 23 | W21: 0 | X21: 15 | Y21: 2.4 | Z21: 226.4
A22: 80 | B22: LOMBO JEAN MICHEL | C22: SERVEUR | D22: BC0224 | E22: Kinshasa | F22: 21 | H22: 77.32772 | I22: 81.3976 | J22: 8.5 | K22: 24.41928 | L22: 63 | M22: 4.07 | N22: 12 | O22: 195 | P22: 179 | Q22: 10.581688 | R22: 1.627952 | S22: 0.1627952 | T22: 12.3724352 | U22: 207.37 | V22: 23 | W22: 0 | X22: 16.11 | Y22: 3 | Z22: 249.48
A23: 81 | B23: TEMUNA NAOMIE | C23: SERVEUSE | D23: BC0225 | E23: Kinshasa | F23: 20 | H23: 70.48772 | I23: 74.1976 | J23: 8.5 | K23: 22.26 | L23: 60 | M23: 3.71 | N23: 10.57 | O23: 184.28 | P23: 170 | Q23: 9.645688 | R23: 1.483952 | S23: 0.1483952 | T23: 11.2780352 | U23: 195.56 | V23: 23 | W23: 0 | X23: 15.3 | Y23: 2.44 | Z23: 236.3
A24: 82 | B24: BENGA FUELE HENRY | C24: SERVEUR | D24: BC0259 | E24: Kinshasa | F24: 27 | H24: 129.3947178 | I24: 136.2049661 | J24: 9.62 | K24: 40.86148984 | L24: 78.003 | M24: 7.259207675 | N24: 19.4 | O24: 257.6 | P24: 241 | Q24: 17.7066456 | R24: 2.724099323 | S24: 0.2724099323 | T24: 20.70315485 | U24: 278.3 | V24: 23 | W24: 0 | X24: 21.6 | Y24: 3.45 | Z24: 326.35
A25: 83 | B25: DIMBU JOHN | C25: SERVEUR | D25: BC0260 | E25: Kinshasa | F25: 26 | H25: 112.2389616 | I25: 118.1462754 | J25: 8.5 | K25: 35.44388262 | L25: 78 | M25: 5.90731377 | N25: 16.83 | O25: 243.74 | P25: 221 | Q25: 15.3590158 | R25: 2.362925508 | S25: 0.2362925508 | T25: 17.95823386 | U25: 261.69 | V25: 23 | W25: 0 | X25: 19.89 | Y25: 3.1824 | Z25: 307.76
A26: 84 | B26: KANKU DANNY | C26: SERVEUR | D26: BC0277 | E26: Kinshasa | F26: 22 | H26: 83.41 | I26: 87.7976 | J26: 8.5 | K26: 26.33928 | L26: 66 | M26: 4.39 | N26: 12.51 | O26: 203.9 | P26: 187 | Q26: 11.413688 | R26: 1.755952 | S26: 0.1755952 | T26: 13.3452352 | U26: 217.25 | V26: 23 | W26: 0 | X26: 16.83 | Y26: 3 | Z26: 260.08
A27: 85 | B27: MPENZO YVES | C27: SERVEUR | D27: BC0271 | E27: Kinshasa | F27: 21 | H27: 77.33 | I27: 81.3976 | J27: 8.5 | K27: 24.41928 | L27: 63 | M27: 4.07 | N27: 12 | O27: 195 | P27: 179 | Q27: 10.581688 | R27: 1.627952 | S27: 0.1627952 | T27: 12.3724352 | U27: 207.37 | V27: 23 | W27: 0 | X27: 16.11 | Y27: 3 | Z27: 249.48
A28: 86 | B28: MVODI JORHAM | C28: SERVEUR | D28: BC0278 | E28: Kinshasa | F28: 22 | H28: 83.41 | I28: 87.7976 | J28: 8.5 | K28: 26.33928 | L28: 66 | M28: 4.39 | N28: 12.51 | O28: 203.9 | P28: 187 | Q28: 11.413688 | R28: 1.755952 | S28: 0.1755952 | T28: 13.3452352 | U28: 217.25 | V28: 23 | W28: 0 | X28: 16.83 | Y28: 3 | Z28: 260.08
A29: 87 | B29: NGANDI FRANCIS | C29: SERVEUR | D29: BC0279 | E29: Kinshasa | F29: 21 | H29: 77.33 | I29: 81.3976 | J29: 8.5 | K29: 24.41928 | L29: 63 | M29: 4.07 | N29: 12 | O29: 195 | P29: 179 | Q29: 10.581688 | R29: 1.627952 | S29: 0.1627952 | T29: 12.3724352 | U29: 207.37 | V29: 23 | W29: 0 | X29: 16.11 | Y29: 3 | Z29: 249.48
A30: 88 | B30: YABEKPA NGATO CLEMENCE | C30: SERVEUSE | D30: BC0280 | E30: Kinshasa | F30: 19 | H30: 64.40772 | I30: 67.7976 | J30: 8.5 | K30: 20.33928 | L30: 57 | M30: 3.39 | N30: 9.6 | O30: 174.39 | P30: 162 | Q30: 8.813688 | R30: 1.355952 | S30: 0.1355952 | T30: 10.3052352 | U30: 184.7 | V30: 23 | W30: 0 | X30: 14.58 | Y30: 2.33 | Z30: 224.61
A31: 89 | B31: MFUTA DORCAS | C31: SERVEUSE | D31: BC0302 | E31: Kinshasa | F31: 20 | H31: 70.48772 | I31: 74.1976 | J31: 8.5 | K31: 22.26 | L31: 60 | M31: 3.71 | N31: 10.57 | O31: 184.28 | P31: 170 | Q31: 9.645688 | R31: 1.483952 | S31: 0.1483952 | T31: 11.2780352 | U31: 195.56 | V31: 23 | W31: 0 | X31: 15.3 | Y31: 2.44 | Z31: 236.3
A32: 90 | B32: BAENDE LUCIE | C32: SERVEUSE | D32: BC0303 | E32: Kinshasa | F32: 24 | H32: 97.66 | I32: 102.7963883 | J32: 8.5 | K32: 31 | L32: 72 | M32: 5.139819413 | N32: 15 | O32: 224.14 | P32: 204 | Q32: 13.36353047 | R32: 2.055927765 | S32: 0.2055927765 | T32: 15.62505102 | U32: 240 | V32: 23 | W32: 0 | X32: 18.36 | Y32: 3 | Z32: 284.36
A33: 91 | B33: BASUBI AMANI JACQUES | C33: SERVEUR | D33: BC0255 | E33: Kinshasa | F33: 21 | H33: 199.7333183 | I33: 210.2455982 | J33: 15.38 | K33: 63.07367946 | L33: 78 | M33: 10.51227991 | N33: 17.80999774 | O33: 351.32 | P33: 323 | Q33: 27.33192777 | R33: 4.204911964 | S33: 0.4204911964 | T33: 31.95733093 | U33: 383.28 | V33: 23 | W33: 0 | X33: 29.07 | Y33: 4.65 | Z33: 440
A34: 92 | B34: MOLOSA ANDY | C34: SERVEUR | D34: BC0400 | E34: Kinshasa | F34: 24 | H34: 97.66 | I34: 102.7963883 | J34: 8.5 | K34: 31 | L34: 72 | M34: 5.139819413 | N34: 15 | O34: 224.14 | P34: 204 | Q34: 13.36353047 | R34: 2.055927765 | S34: 0.2055927765 | T34: 15.62505102 | U34: 240 | V34: 23 | W34: 0 | X34: 18.36 | Y34: 3 | Z34: 284.36
A35: 93 | B35: ADJONGA DANNY | C35: SERVEUR | D35: BC0401 | E35: Kinshasa | F35: 24 | H35: 97.66 | I35: 102.7963883 | J35: 8.5 | K35: 31 | L35: 72 | M35: 5.139819413 | N35: 15 | O35: 224.14 | P35: 204 | Q35: 13.36353047 | R35: 2.055927765 | S35: 0.2055927765 | T35: 15.62505102 | U35: 240 | V35: 23 | W35: 0 | X35: 18.36 | Y35: 3 | Z35: 284.36
P36: 6510 | U36: 7721.31 | V36: 713 | X36: 587.31 | Y36: 99.13 | Z36: 9120.75

Sheet Feuil8
I2: ETAT DE PAIE GRANDS HOTELS DU CONGO JUILLET 2022
A3: N° | B3: Noms | C3: Fonction | D3: Matricule | E3: Localisation | F3: Pointage du mois | G3: Base imposable | H3: Plafond INSS | I3: Salaire journalier | J3: Ind. Logement | K3: Ind. Transp | L3: CNSS QPO | M3: IPR | N3: Masse salariale | O3: Net à payer | P3: CNSS QPP | Q3: INPP | R3: ONEM | S3: Total Charges patronales | T3: Coût salarial | U3: Soins Medicaux 23$ par famille | V3: Autre prime | W3: Frais de Services 9% | X3: TVA 16% Frais de Services | Y3: Total Employeur mensuel
F4: Jrs prestés
A5: 94 | B5: MAYOLA ESPOIR | C5: SERVEUR | D5: BC0403 | E5: Kinshasa | F5: 24 | G5: 97.66 | H5: 102.7963883 | I5: 8.5 | J5: 31 | K5: 72 | L5: 5.139819413 | M5: 15 | N5: 224.14 | O5: 204 | P5: 13.36353047 | Q5: 2.055927765 | R5: 0.2055927765 | S5: 15.62505102 | T5: 240 | U5: 23 | V5: 0 | W5: 18.36 | X5: 3 | Y5: 284.36
A6: 95 | B6: MATUALA MILTON | C6: SERVEUR | D6: BC0404 | E6: Kinshasa | F6: 24 | G6: 97.66 | H6: 102.7963883 | I6: 8.5 | J6: 31 | K6: 72 | L6: 5.139819413 | M6: 15 | N6: 224.14 | O6: 204 | P6: 13.36353047 | Q6: 2.055927765 | R6: 0.2055927765 | S6: 15.62505102 | T6: 240 | U6: 23 | V6: 0 | W6: 18.36 | X6: 3 | Y6: 284.36
A7: 96 | B7: KEMBO DON SALEM | C7: MAITRE D'HOTEL | D7: BC0250 | E7: Kinshasa | F7: 5 | G7: 0.19 | H7: 0.2 | I7: 15.38 | J7: 0.06 | K7: 15 | L7: 0.01 | M7: 0.75 | N7: 77.76 | O7: 77 | P7: 0.03 | Q7: 0 | R7: 0 | S7: 0.03 | T7: 77.79 | U7: 23 | V7: 0 | W7: 6.9 | X7: 1.1 | Y7: 108.79
A8: 97 | B8: KADIMA KABEYA RICHE | C8: SUPERVISEUR | D8: BC0290 | E8: Kinshasa | F8: 5 | G8: 7.79 | H8: 8.2 | I8: 13.46 | J8: 2.46 | K8: 15 | L8: 0.41 | M8: 0.75 | N8: 68.16 | O8: 67 | P8: 1.07 | Q8: 0.16 | R8: 0.02 | S8: 1.25 | T8: 69.41 | U8: 23 | V8: 0 | W8: 6.03 | X8: 0.96 | Y8: 99.4
A9: 98 | B9: MUKWA EDITH | C9: BARMAID | D9: BC0425 | E9: Kinshasa | F9: 24 | G9: 97.66 | H9: 102.7963883 | I9: 8.5 | J9: 31 | K9: 72 | L9: 5.139819413 | M9: 15 | N9: 224.14 | O9: 204 | P9: 13.36353047 | Q9: 2.055927765 | R9: 0.2055927765 | S9: 15.62505102 | T9: 240 | U9: 23 | V9: 0 | W9: 18.36 | X9: 3 | Y9: 284.36
A10: 99 | B10: ILUNGA IDRISS | C10: SUPERVISEUR | D10: BC0426 | E10: Kinshasa | F10: 24 | G10: 199.7333183 | H10: 210.2455982 | I10: 13.46 | J10: 63.07367946 | K10: 72 | L10: 17.81 | M10: 29.95 | N10: 370.76 | O10: 323 | P10: 27.33192777 | Q10: 4.204911964 | R10: 0.4204911964 | S10: 31.95733093 | T10: 402.72 | U10: 23 | V10: 0 | W10: 29.07 | X10: 4.65 | Y10: 459.44
A11: 100 | B11: LIKOY CHRISTELLE | C11: HOTESSE | D11: BC0427 | E11: Kinshasa | F11: 24 | G11: 199.7333183 | H11: 210.2455982 | I11: 13.46 | J11: 63.07367946 | K11: 72 | L11: 17.81 | M11: 29.95 | N11: 370.76 | O11: 323 | P11: 27.33192777 | Q11: 4.204911964 | R11: 0.4204911964 | S11: 31.95733093 | T11: 402.72 | U11: 23 | V11: 0 | W11: 29.07 | X11: 4.65 | Y11: 459.44
A12: 101 | B12: TSHIEBWE KABINDA ALEXANDRA | C12: HOTESSE | D12: BC0428 | E12: Kinshasa | F12: 21 | G12: 165.4218059 | H12: 174.1282167 | I12: 15.9 | J12: 52.23846501 | K12: 63 | L12: 8.706410835 | M12: 24.81 | N12: 316.52 | O12: 283 | P12: 22.63666817 | Q12: 3.482564334 | R12: 0.3482564334 | S12: 26.46748894 | T12: 342.99 | U12: 23 | V12: 0 | W12: 25.47 | X12: 4.07 | Y12: 395.53
A13: 102 | B13: BUERE BUERE MEDARD | C13: ARCHIVISTE | D13: BC0291 | E13: Kinshasa | F13: 26 | G13: 257.2051016 | H13: 270.7422122 | I13: 15 | J13: 81.22266366 | K13: 78 | L13: 13.53711061 | M13: 38.58 | N13: 442.12 | O13: 390 | P13: 35.19648758 | Q13: 5.414844244 | R13: 0.5414844244 | S13: 41.15281625 | T13: 483.27 | U13: 23 | V13: 0 | W13: 35.1 | X13: 5.61 | Y13: 546.98
A14: 103 | B14: MALEMO NAKWETI ARNOLD | C14: INFIRMIER | D14: BC0429 | E14: Kinshasa | F14: 26 | G14: 257.2051016 | H14: 270.7422122 | I14: 15 | J14: 81.22266366 | K14: 78 | L14: 13.53711061 | M14: 38.58 | N14: 442.12 | O14: 390 | P14: 35.19648758 | Q14: 5.414844244 | R14: 0.5414844244 | S14: 41.15281625 | T14: 483.27 | U14: 23 | V14: 0 | W14: 35.1 | X14: 5.61 | Y14: 546.98
A15: 104 | B15: BETU MICHEL | C15: AGENT SEC | D15: BC0219 | E15: Kinshasa | F15: 17 | G15: 70.48772 | H15: 74.1976 | I15: 10 | J15: 22.26 | K15: 60 | L15: 3.71 | M15: 10.57 | N15: 184.28 | O15: 170 | P15: 9.645688 | Q15: 1.483952 | R15: 0.1483952 | S15: 11.2780352 | T15: 195.56 | U15: 23 | V15: 0 | W15: 15.3 | X15: 2.44 | Y15: 236.3
A16: 105 | B16: IBANDA NICOLAS | C16: AGENT SEC | D16: BC0220 | E16: Kinshasa | F16: 26 | G16: 145.69 | H16: 153.3607223 | I16: 10 | J16: 46.0082167 | K16: 78 | L16: 7.668036117 | M16: 21.85 | N16: 289.52 | O16: 260 | P16: 19.93689391 | Q16: 3.067214447 | R16: 0.3067214447 | S16: 23.3108298 | T16: 312.83 | U16: 23 | V16: 0 | W16: 23.4 | X16: 3.744 | Y16: 362.97
A17: 106 | B17: NKENDA JUNETTE | C17: AGENT SEC | D17: BC0221 | E17: Kinshasa | F17: 26 | G17: 145.69 | H17: 153.3607223 | I17: 10 | J17: 46.0082167 | K17: 78 | L17: 7.668036117 | M17: 21.85 | N17: 289.52 | O17: 260 | P17: 19.93689391 | Q17: 3.067214447 | R17: 0.3067214447 | S17: 23.3108298 | T17: 312.83 | U17: 23 | V17: 0 | W17: 23.4 | X17: 3.744 | Y17: 362.97
A18: 107 | B18: KAPELA DIVINE | C18: AGENT SEC | D18: BC0222 | E18: Kinshasa | F18: 26 | G18: 145.69 | H18: 153.3607223 | I18: 10 | J18: 46.0082167 | K18: 78 | L18: 7.668036117 | M18: 21.85 | N18: 289.52 | O18: 260 | P18: 19.93689391 | Q18: 3.067214447 | R18: 0.3067214447 | S18: 23.3108298 | T18: 312.83 | U18: 23 | V18: 0 | W18: 23.4 | X18: 3.744 | Y18: 362.97
A19: 108 | B19: KAMENGA MPALA FISTON | C19: PLOMBIER | D19: BCO219 | E19: Kinshasa | F19: 26 | G19: 145.69 | H19: 153.3607223 | I19: 10 | J19: 46.0082167 | K19: 78 | L19: 7.668036117 | M19: 21.85 | N19: 289.52 | O19: 260 | P19: 19.93689391 | Q19: 3.067214447 | R19: 0.3067214447 | S19: 23.3108298 | T19: 312.83 | U19: 23 | V19: 0 | W19: 23.4 | X19: 3.744 | Y19: 362.97
A20: 109 | B20: BINDA PATRICK | C20: JARDINIER | D20: BC0292 | E20: Kinshasa | F20: 26 | G20: 197.1599549 | H20: 207.5367946 | I20: 12.31 | J20: 62.26103837 | K20: 78 | L20: 10.37683973 | M20: 29.57 | N20: 359.95 | O20: 320 | P20: 26.9797833 | Q20: 4.150735892 | R20: 0.4150735892 | S20: 31.54559278 | T20: 391.5 | U20: 23 | V20: 0 | W20: 28.8 | X20: 4.6 | Y20: 447.9
A21: 110 | B21: MUKUTU NZILA MOLENDE | C21: TOUT TRAVAUX | D21: BC0293 | E21: Kinshasa | F21: 26 | G21: 145.69 | H21: 153.3607223 | I21: 10 | J21: 46.0082167 | K21: 78 | L21: 7.668036117 | M21: 21.85 | N21: 289.52 | O21: 260 | P21: 19.93689391 | Q21: 3.067214447 | R21: 0.3067214447 | S21: 23.3108298 | T21: 312.83 | U21: 23 | V21: 0 | W21: 23.4 | X21: 3.744 | Y21: 362.97
A22: 111 | B22: MAVUNGU SINGA DALLY | C22: MAGASINIER | D22: BC0294 | E22: Kinshasa | F22: 26 | G22: 145.69 | H22: 153.3607223 | I22: 10 | J22: 46.0082167 | K22: 78 | L22: 7.668036117 | M22: 21.85 | N22: 289.52 | O22: 260 | P22: 19.93689391 | Q22: 3.067214447 | R22: 0.3067214447 | S22: 23.3108298 | T22: 312.83 | U22: 23 | V22: 0 | W22: 23.4 | X22: 3.744 | Y22: 362.97
A23: 112 | B23: NZANGAMA JOEL | C23: FRIGORISTE | D23: BC304 | E23: Kinshasa | F23: 26 | G23: 145.69 | H23: 153.3607223 | I23: 10 | J23: 46.0082167 | K23: 78 | L23: 7.668036117 | M23: 21.85 | N23: 289.52 | O23: 260 | P23: 19.93689391 | Q23: 3.067214447 | R23: 0.3067214447 | S23: 23.3108298 | T23: 312.83 | U23: 23 | V23: 0 | W23: 23.4 | X23: 3.744 | Y23: 362.97
A24: 113 | B24: LUYINDULA ALDIN | C24: TOUT TRAVAUX | D24: BC0297 | E24: Kinshasa | F24: 26 | G24: 145.69 | H24: 153.3607223 | I24: 10 | J24: 46.0082167 | K24: 78 | L24: 7.668036117 | M24: 21.85 | N24: 289.52 | O24: 260 | P24: 19.93689391 | Q24: 3.067214447 | R24: 0.3067214447 | S24: 23.3108298 | T24: 312.83 | U24: 23 | V24: 0 | W24: 23.4 | X24: 3.744 | Y24: 362.97
A25: 114 | B25: MATOMINA THOS | C25: PEINTRE | D25: BC0400 | E25: Kinshasa | F25: 24 | G25: 128.53693 | H25: 135.3020316 | I25: 10 | J25: 40.59060948 | K25: 69 | L25: 6.77 | M25: 19.28 | N25: 266.05 | O25: 240 | P25: 17.58926411 | Q25: 2.706040632 | R25: 0.2706040632 | S25: 20.5659088 | T25: 286.62 | U25: 23 | V25: 0 | W25: 21.6 | X25: 3.45 | Y25: 334.67
O26: 5275 | T26: 6358.49 | U26: 483 | W26: 474.72 | X26: 76.09 | Y26: 7392.3
